Department family,Entity,Date,Expense type,Expense area,Supplier,Transaction number,Amount
Department of Health,Leicestershire Partnership NHS Trust,01/03/24,External Consultancy Fees,Leicester City CCG IT Recharge,PHOENIX SOFTWARE LTD,OP/I000340,30000.00
Department of Health,Leicestershire Partnership NHS Trust,01/03/24,Computer License  Fees,Finance Department,VERSION 1,INVSOL020869,39367.20
Department of Health,Leicestershire Partnership NHS Trust,01/03/24,Unitary Payment,"The Agnes Unit (AKA Assessment and Treatment Centre) (P85, LPT)",ARDEN PARTNERSHIP (LEICESTER),SI0144,145299.39
Department of Health,Leicestershire Partnership NHS Trust,01/03/24,Healthcare Services / Recharges from Non-NHS Bodies,Adult Eating Disorder Collaborative,PRIORY GROUP,301FEB24LEC,75337.47
Department of Health,Leicestershire Partnership NHS Trust,01/03/24,Lease Rents (IFRS16),"St Peters Health Center (Part 1st and 2nd floors) (P66, LPT)",LEICESTER LIFT CO,LEP1-SI1541,34244.84
Department of Health,Leicestershire Partnership NHS Trust,04/03/24,Lease Rents (IFRS16),Meridian (EFM Base),TRUSTEES OF WATER ROSE RETIRE FUND,010,30000.00
Department of Health,Leicestershire Partnership NHS Trust,04/03/24,Healthcare Services / Recharges from Non-NHS Bodies,AMH - Central Access Point,TURNING POINT,SI-TPS-00051643,110098.92
Department of Health,Leicestershire Partnership NHS Trust,04/03/24,WIP Project Not in BS - Information Technology,Work in Progress,SOFTCAT PLC,INVUK1211411,45475.20
Department of Health,Leicestershire Partnership NHS Trust,04/03/24,Computer Hardware,Unallocated Budgets,SOFTCAT PLC,INVUK1196262,87720.00
Department of Health,Leicestershire Partnership NHS Trust,04/03/24,Computer Hardware,HIS External Recharge,SOFTCAT PLC,INVUK1216421,126294.00
Department of Health,Leicestershire Partnership NHS Trust,05/03/24,WIP Project Not in BS - Buildings excl Dwellings,Work in Progress,O.HEAP & SON (DERBY) LTD,SINB41435,36737.33
Department of Health,Leicestershire Partnership NHS Trust,05/03/24,Computer Software,HIS,FUSION BUSINESS SOLUTIONS (UK),0000029143,32399.98
Department of Health,Leicestershire Partnership NHS Trust,05/03/24,Landline Telephone Rental / Calls,"Beaumont Leys Health Centre (P94, LPT)",VIRGIN MEDIA BUSINESS,853083001/004/0224,345.58
Department of Health,Leicestershire Partnership NHS Trust,05/03/24,Landline Telephone Rental / Calls,"Bennion Centre (including Forest Grange Day Unit) (P8, LPT)",VIRGIN MEDIA BUSINESS,853083001/004/0224,8.77
Department of Health,Leicestershire Partnership NHS Trust,05/03/24,Landline Telephone Rental / Calls,"Bradgate Unit (including Glenvale day Unit) (P7, LPT)",VIRGIN MEDIA BUSINESS,853083001/004/0224,6409.01
Department of Health,Leicestershire Partnership NHS Trust,05/03/24,Landline Telephone Rental / Calls,Braunstone Health and Social Care Centre (Part) (PROPCO),VIRGIN MEDIA BUSINESS,853083001/004/0224,1114.60
Department of Health,Leicestershire Partnership NHS Trust,05/03/24,Landline Telephone Rental / Calls,Bridge Park Plaza - First Floor (LPT),VIRGIN MEDIA BUSINESS,853083001/004/0224,2619.76
Department of Health,Leicestershire Partnership NHS Trust,05/03/24,Landline Telephone Rental / Calls,"Coalville Community Hospital (P138, LPT)",VIRGIN MEDIA BUSINESS,853083001/004/0224,85.14
Department of Health,Leicestershire Partnership NHS Trust,05/03/24,Landline Telephone Rental / Calls,"Coalville Health Centre (P121, LPT)",VIRGIN MEDIA BUSINESS,853083001/004/0224,-31.06
Department of Health,Leicestershire Partnership NHS Trust,05/03/24,Landline Telephone Rental / Calls,County Hall,VIRGIN MEDIA BUSINESS,853083001/004/0224,1494.95
Department of Health,Leicestershire Partnership NHS Trust,05/03/24,Landline Telephone Rental / Calls,Estates & Facilities Central,VIRGIN MEDIA BUSINESS,853083001/004/0224,5.27
Department of Health,Leicestershire Partnership NHS Trust,05/03/24,Landline Telephone Rental / Calls,"Evington Centre (P6, LPT)",VIRGIN MEDIA BUSINESS,853083001/004/0224,204.06
Department of Health,Leicestershire Partnership NHS Trust,05/03/24,Landline Telephone Rental / Calls,HIS,VIRGIN MEDIA BUSINESS,853083001/004/0224,2873.81
Department of Health,Leicestershire Partnership NHS Trust,05/03/24,Landline Telephone Rental / Calls,"Hinckley and Bosworth Community Hospital (Sunnyside) (P133, LPT)",VIRGIN MEDIA BUSINESS,853083001/004/0224,956.84
Department of Health,Leicestershire Partnership NHS Trust,05/03/24,Landline Telephone Rental / Calls,"Hynca Lodge (P33, LPT)",VIRGIN MEDIA BUSINESS,853083001/004/0224,420.62
Department of Health,Leicestershire Partnership NHS Trust,05/03/24,Landline Telephone Rental / Calls,"Legion House, Ashby",VIRGIN MEDIA BUSINESS,853083001/004/0224,-3.36
Department of Health,Leicestershire Partnership NHS Trust,05/03/24,Landline Telephone Rental / Calls,"Loughborough Hospital (P136, LPT)",VIRGIN MEDIA BUSINESS,853083001/004/0224,4279.96
Department of Health,Leicestershire Partnership NHS Trust,05/03/24,Landline Telephone Rental / Calls,Mawson House (LPT),VIRGIN MEDIA BUSINESS,853083001/004/0224,464.35
Department of Health,Leicestershire Partnership NHS Trust,05/03/24,Landline Telephone Rental / Calls,Merlyn Vaz Centre (CHP),VIRGIN MEDIA BUSINESS,853083001/004/0224,1289.56
Department of Health,Leicestershire Partnership NHS Trust,05/03/24,Landline Telephone Rental / Calls,"Mett Centre (P49, LPT)",VIRGIN MEDIA BUSINESS,853083001/004/0224,124.72
Department of Health,Leicestershire Partnership NHS Trust,05/03/24,Landline Telephone Rental / Calls,New Parks Health Centre (PROPCO),VIRGIN MEDIA BUSINESS,853083001/004/0224,1556.28
Department of Health,Leicestershire Partnership NHS Trust,05/03/24,Landline Telephone Rental / Calls,"OSL House (P54, LPT)",VIRGIN MEDIA BUSINESS,853083001/004/0224,921.54
Department of Health,Leicestershire Partnership NHS Trust,05/03/24,Landline Telephone Rental / Calls,"Orchard Resource Centre (P15, LPT)",VIRGIN MEDIA BUSINESS,853083001/004/0224,524.89
Department of Health,Leicestershire Partnership NHS Trust,05/03/24,Landline Telephone Rental / Calls,Pasley Road Health Centre (PROPCO),VIRGIN MEDIA BUSINESS,853083001/004/0224,111.11
Department of Health,Leicestershire Partnership NHS Trust,05/03/24,Landline Telephone Rental / Calls,"Prince Philip House (P96, LPT)",VIRGIN MEDIA BUSINESS,853083001/004/0224,1115.45
Department of Health,Leicestershire Partnership NHS Trust,05/03/24,Landline Telephone Rental / Calls,Rushey Mead Health Centre (PROPCO),VIRGIN MEDIA BUSINESS,853083001/004/0224,72.37
Department of Health,Leicestershire Partnership NHS Trust,05/03/24,Landline Telephone Rental / Calls,"Springfield Road Health Centre (P92, LPT)",VIRGIN MEDIA BUSINESS,853083001/004/0224,373.81
Department of Health,Leicestershire Partnership NHS Trust,05/03/24,Landline Telephone Rental / Calls,"St Peters Health Center (Part 1st and 2nd floors) (P66, LPT)",VIRGIN MEDIA BUSINESS,853083001/004/0224,1451.35
Department of Health,Leicestershire Partnership NHS Trust,05/03/24,Landline Telephone Rental / Calls,"Swithland House - London Road 352 (P44, LPT)",VIRGIN MEDIA BUSINESS,853083001/004/0224,261.35
Department of Health,Leicestershire Partnership NHS Trust,05/03/24,Landline Telephone Rental / Calls,"The Cedars (P19, LPT)",VIRGIN MEDIA BUSINESS,853083001/004/0224,734.62
Department of Health,Leicestershire Partnership NHS Trust,05/03/24,Landline Telephone Rental / Calls,"The Willows - Cordelia Close (P22, LPT)",VIRGIN MEDIA BUSINESS,853083001/004/0224,46.44
Department of Health,Leicestershire Partnership NHS Trust,05/03/24,Landline Telephone Rental / Calls,"Valentine Centre (P3, LPT)",VIRGIN MEDIA BUSINESS,853083001/004/0224,534.35
Department of Health,Leicestershire Partnership NHS Trust,05/03/24,Landline Telephone Rental / Calls,Warren Park Way 25 (PROPCO),VIRGIN MEDIA BUSINESS,853083001/004/0224,742.33
Department of Health,Leicestershire Partnership NHS Trust,05/03/24,Landline Telephone Rental / Calls,"Westcotes Group -Westcotes House (P78, LPT)",VIRGIN MEDIA BUSINESS,853083001/004/0224,823.74
Department of Health,Leicestershire Partnership NHS Trust,05/03/24,Landline Telephone Rental / Calls,"Winstanley Drive Health Centre (P8, LPT)",VIRGIN MEDIA BUSINESS,853083001/004/0224,46.44
Department of Health,Leicestershire Partnership NHS Trust,05/03/24,Healthcare Services / Recharges from Non-NHS Bodies,Adult Eating Disorder Collaborative,NAVIGO H&SC CIC,2399,32828.00
Department of Health,Leicestershire Partnership NHS Trust,05/03/24,Medical Equipment Repairs / Maintenance,Community Health Services Management,SPIRIT DIGITAL LTD,SIN240305SDI00081,43740.00
Department of Health,Leicestershire Partnership NHS Trust,06/03/24,Payroll Deductions -Salary Sacrifice Cars Scheme,Balance Sheet Collection,TUSKER,88636,65374.03
Department of Health,Leicestershire Partnership NHS Trust,06/03/24,HR / Payroll Services,HR Employment Services,LINCOLNSHIRE PART NHSFT(RP7),L0001233,34400.00
Department of Health,Leicestershire Partnership NHS Trust,06/03/24,Medical Equipment Repairs / Maintenance,Medical Devices Maintenance (LPT),SUPPLY CHAIN CO LTD,2124009959,75063.01
Department of Health,Leicestershire Partnership NHS Trust,06/03/24,Crs_NHS_LT1y -Resus Inventory Supplied.,Balance Sheet Collection,SUPPLY CHAIN CO LTD,1124323699,33562.84
Department of Health,Leicestershire Partnership NHS Trust,07/03/24,Catering - Patient - Food,"Bradgate Unit (including Glenvale day Unit) (P7, LPT)",APETITO LTD,W/C060324,8262.14
Department of Health,Leicestershire Partnership NHS Trust,07/03/24,Catering - Patient - Food,"Coalville Community Hospital (P138, LPT)",APETITO LTD,W/C060324,8806.73
Department of Health,Leicestershire Partnership NHS Trust,07/03/24,Catering - Patient - Food,"Evington Centre (P6, LPT)",APETITO LTD,W/C060324,-150.23
Department of Health,Leicestershire Partnership NHS Trust,07/03/24,Catering - Patient - Food,"Hinckley and Bosworth Community Hospital (Sunnyside) (P133, LPT)",APETITO LTD,W/C060324,2583.08
Department of Health,Leicestershire Partnership NHS Trust,07/03/24,Catering - Patient - Food,"Loughborough Hospital (P136, LPT)",APETITO LTD,W/C060324,4935.66
Department of Health,Leicestershire Partnership NHS Trust,07/03/24,Catering - Patient - Food,"Rutland Memorial Hospital (P134, LPT)",APETITO LTD,W/C060324,1487.27
Department of Health,Leicestershire Partnership NHS Trust,07/03/24,Catering - Patient - Food,"Stewart House (P61, LPT)",APETITO LTD,W/C060324,1607.51
Department of Health,Leicestershire Partnership NHS Trust,07/03/24,Catering - Patient - Food,"The Willows - Cordelia Close (P22, LPT)",APETITO LTD,W/C060324,1415.63
Department of Health,Leicestershire Partnership NHS Trust,07/03/24,NURSE - BAND 2 - AGENCY,Beechwood Ward,HCL NURSING,HNSI0001585,4026.61
Department of Health,Leicestershire Partnership NHS Trust,07/03/24,NURSE - BAND 5 - AGENCY,Beechwood Ward,HCL NURSING,HNSI0001585,4871.95
Department of Health,Leicestershire Partnership NHS Trust,07/03/24,NURSE - BAND 5 - AGENCY,City Planned Care - East,HCL NURSING,HNSI0001585,35663.54
Department of Health,Leicestershire Partnership NHS Trust,07/03/24,NURSE - BAND 5 - AGENCY,City Planned Care - West,HCL NURSING,HNSI0001585,27116.46
Department of Health,Leicestershire Partnership NHS Trust,07/03/24,NURSE - BAND 2 - AGENCY,Clarendon Ward,HCL NURSING,HNSI0001585,3858.34
Department of Health,Leicestershire Partnership NHS Trust,07/03/24,NURSE - BAND 5 - AGENCY,Clarendon Ward,HCL NURSING,HNSI0001585,3314.90
Department of Health,Leicestershire Partnership NHS Trust,07/03/24,NURSE - BAND 2 - AGENCY,Coalville Snibston Ward,HCL NURSING,HNSI0001585,9272.79
Department of Health,Leicestershire Partnership NHS Trust,07/03/24,NURSE - BAND 5 - AGENCY,Coalville Snibston Ward,HCL NURSING,HNSI0001585,2691.84
Department of Health,Leicestershire Partnership NHS Trust,07/03/24,NURSE - BAND 2 - AGENCY,Coalville Ward 2,HCL NURSING,HNSI0001585,7407.67
Department of Health,Leicestershire Partnership NHS Trust,07/03/24,NURSE - BAND 5 - AGENCY,Coalville Ward 2,HCL NURSING,HNSI0001585,2814.74
Department of Health,Leicestershire Partnership NHS Trust,07/03/24,NURSE - BAND 2 - AGENCY,Coalville Ward 4,HCL NURSING,HNSI0001585,7510.77
Department of Health,Leicestershire Partnership NHS Trust,07/03/24,NURSE - BAND 5 - AGENCY,Coalville Ward 4,HCL NURSING,HNSI0001585,6206.84
Department of Health,Leicestershire Partnership NHS Trust,07/03/24,NURSE - BAND 2 - AGENCY,Dalgliesh Ward,HCL NURSING,HNSI0001585,9175.83
Department of Health,Leicestershire Partnership NHS Trust,07/03/24,NURSE - BAND 5 - AGENCY,Dalgliesh Ward,HCL NURSING,HNSI0001585,4773.89
Department of Health,Leicestershire Partnership NHS Trust,07/03/24,NURSE - BAND 5 - AGENCY,East Planned Care - Blaby/Lutterworth,HCL NURSING,HNSI0001585,891.12
Department of Health,Leicestershire Partnership NHS Trust,07/03/24,NURSE - BAND 5 - AGENCY,"East Planned Care - Melton,Syston,Rutland",HCL NURSING,HNSI0001585,5056.00
Department of Health,Leicestershire Partnership NHS Trust,07/03/24,NURSE - BAND 5 - AGENCY,"East Planned Care - Oadby,Wigston & Harborough",HCL NURSING,HNSI0001585,3960.94
Department of Health,Leicestershire Partnership NHS Trust,07/03/24,NURSE - BAND 2 - AGENCY,H&B Comm Hosp East Ward,HCL NURSING,HNSI0001585,15888.42
Department of Health,Leicestershire Partnership NHS Trust,07/03/24,NURSE - BAND 5 - AGENCY,H&B Comm Hosp East Ward,HCL NURSING,HNSI0001585,9386.19
Department of Health,Leicestershire Partnership NHS Trust,07/03/24,NURSE - BAND 2 - AGENCY,H&B Comm Hosp North Ward,HCL NURSING,HNSI0001585,4737.49
Department of Health,Leicestershire Partnership NHS Trust,07/03/24,NURSE - BAND 5 - AGENCY,H&B Comm Hosp North Ward,HCL NURSING,HNSI0001585,1107.45
Department of Health,Leicestershire Partnership NHS Trust,07/03/24,NURSE - BAND 2 - AGENCY,Lough Swithland Ward,HCL NURSING,HNSI0001585,2639.61
Department of Health,Leicestershire Partnership NHS Trust,07/03/24,NURSE - BAND 5 - AGENCY,Lough Swithland Ward,HCL NURSING,HNSI0001585,2388.88
Department of Health,Leicestershire Partnership NHS Trust,07/03/24,NURSE - BAND 2 - AGENCY,Loughborough Charnwood Ward,HCL NURSING,HNSI0001585,4869.81
Department of Health,Leicestershire Partnership NHS Trust,07/03/24,NURSE - BAND 5 - AGENCY,Loughborough Charnwood Ward,HCL NURSING,HNSI0001585,12846.92
Department of Health,Leicestershire Partnership NHS Trust,07/03/24,NURSE - BAND 5 - AGENCY,Non Recurrent 2012/13,HCL NURSING,HNSI0001585,8269.82
Department of Health,Leicestershire Partnership NHS Trust,07/03/24,NURSE - BAND 2 - AGENCY,Rutland Ward Nursing,HCL NURSING,HNSI0001585,2166.06
Department of Health,Leicestershire Partnership NHS Trust,07/03/24,NURSE - BAND 5 - AGENCY,Rutland Ward Nursing,HCL NURSING,HNSI0001585,4123.02
Department of Health,Leicestershire Partnership NHS Trust,07/03/24,NURSE - BAND 2 - AGENCY,St Lukes Stroke Ward,HCL NURSING,HNSI0001585,6437.26
Department of Health,Leicestershire Partnership NHS Trust,07/03/24,NURSE - BAND 5 - AGENCY,St Lukes Stroke Ward,HCL NURSING,HNSI0001585,2807.80
Department of Health,Leicestershire Partnership NHS Trust,07/03/24,NURSE - BAND 2 - AGENCY,St Lukes Ward 3,HCL NURSING,HNSI0001585,4044.35
Department of Health,Leicestershire Partnership NHS Trust,07/03/24,NURSE - BAND 5 - AGENCY,St Lukes Ward 3,HCL NURSING,HNSI0001585,1505.01
Department of Health,Leicestershire Partnership NHS Trust,07/03/24,NURSE - BAND 5 - AGENCY,West Planned Care  - Charnwood Hub,HCL NURSING,HNSI0001585,6298.36
Department of Health,Leicestershire Partnership NHS Trust,07/03/24,NURSE - BAND 5 - AGENCY,West Planned Care  - Hinckley Hub,HCL NURSING,HNSI0001585,3047.45
Department of Health,Leicestershire Partnership NHS Trust,07/03/24,NURSE - BAND 2 - AGENCY,Beechwood Ward,HCL NURSING,HNSI0001581,4578.12
Department of Health,Leicestershire Partnership NHS Trust,07/03/24,NURSE - BAND 5 - AGENCY,Beechwood Ward,HCL NURSING,HNSI0001581,918.08
Department of Health,Leicestershire Partnership NHS Trust,07/03/24,NURSE - BAND 5 - AGENCY,City Planned Care - East,HCL NURSING,HNSI0001581,28039.47
Department of Health,Leicestershire Partnership NHS Trust,07/03/24,NURSE - BAND 5 - AGENCY,City Planned Care - West,HCL NURSING,HNSI0001581,27119.83
Department of Health,Leicestershire Partnership NHS Trust,07/03/24,NURSE - BAND 2 - AGENCY,Clarendon Ward,HCL NURSING,HNSI0001581,2730.65
Department of Health,Leicestershire Partnership NHS Trust,07/03/24,NURSE - BAND 5 - AGENCY,Clarendon Ward,HCL NURSING,HNSI0001581,4811.76
Department of Health,Leicestershire Partnership NHS Trust,07/03/24,NURSE - BAND 2 - AGENCY,Coalville Snibston Ward,HCL NURSING,HNSI0001581,7819.65
Department of Health,Leicestershire Partnership NHS Trust,07/03/24,NURSE - BAND 5 - AGENCY,Coalville Snibston Ward,HCL NURSING,HNSI0001581,921.06
Department of Health,Leicestershire Partnership NHS Trust,07/03/24,NURSE - BAND 2 - AGENCY,Coalville Ward 2,HCL NURSING,HNSI0001581,6956.86
Department of Health,Leicestershire Partnership NHS Trust,07/03/24,NURSE - BAND 5 - AGENCY,Coalville Ward 2,HCL NURSING,HNSI0001581,3971.78
Department of Health,Leicestershire Partnership NHS Trust,07/03/24,NURSE - BAND 2 - AGENCY,Coalville Ward 4,HCL NURSING,HNSI0001581,8085.04
Department of Health,Leicestershire Partnership NHS Trust,07/03/24,NURSE - BAND 5 - AGENCY,Coalville Ward 4,HCL NURSING,HNSI0001581,9625.22
Department of Health,Leicestershire Partnership NHS Trust,07/03/24,NURSE - BAND 2 - AGENCY,Dalgliesh Ward,HCL NURSING,HNSI0001581,8424.59
Department of Health,Leicestershire Partnership NHS Trust,07/03/24,NURSE - BAND 5 - AGENCY,Dalgliesh Ward,HCL NURSING,HNSI0001581,4677.87
Department of Health,Leicestershire Partnership NHS Trust,07/03/24,NURSE - BAND 5 - AGENCY,East Planned Care - Blaby/Lutterworth,HCL NURSING,HNSI0001581,1501.23
Department of Health,Leicestershire Partnership NHS Trust,07/03/24,NURSE - BAND 5 - AGENCY,"East Planned Care - Melton,Syston,Rutland",HCL NURSING,HNSI0001581,7620.94
Department of Health,Leicestershire Partnership NHS Trust,07/03/24,NURSE - BAND 5 - AGENCY,"East Planned Care - Oadby,Wigston & Harborough",HCL NURSING,HNSI0001581,4158.26
Department of Health,Leicestershire Partnership NHS Trust,07/03/24,NURSE - BAND 2 - AGENCY,H&B Comm Hosp East Ward,HCL NURSING,HNSI0001581,15593.31
Department of Health,Leicestershire Partnership NHS Trust,07/03/24,NURSE - BAND 5 - AGENCY,H&B Comm Hosp East Ward,HCL NURSING,HNSI0001581,7856.16
Department of Health,Leicestershire Partnership NHS Trust,07/03/24,NURSE - BAND 2 - AGENCY,H&B Comm Hosp North Ward,HCL NURSING,HNSI0001581,5022.44
Department of Health,Leicestershire Partnership NHS Trust,07/03/24,NURSE - BAND 5 - AGENCY,H&B Comm Hosp North Ward,HCL NURSING,HNSI0001581,527.55
Department of Health,Leicestershire Partnership NHS Trust,07/03/24,NURSE - BAND 2 - AGENCY,Lough Swithland Ward,HCL NURSING,HNSI0001581,1719.65
Department of Health,Leicestershire Partnership NHS Trust,07/03/24,NURSE - BAND 5 - AGENCY,Lough Swithland Ward,HCL NURSING,HNSI0001581,2688.25
Department of Health,Leicestershire Partnership NHS Trust,07/03/24,NURSE - BAND 2 - AGENCY,Loughborough Charnwood Ward,HCL NURSING,HNSI0001581,7247.79
Department of Health,Leicestershire Partnership NHS Trust,07/03/24,NURSE - BAND 5 - AGENCY,Loughborough Charnwood Ward,HCL NURSING,HNSI0001581,10234.42
Department of Health,Leicestershire Partnership NHS Trust,07/03/24,NURSE - BAND 5 - AGENCY,Non Recurrent 2012/13,HCL NURSING,HNSI0001581,2333.06
Department of Health,Leicestershire Partnership NHS Trust,07/03/24,NURSE - BAND 2 - AGENCY,Rutland Ward Nursing,HCL NURSING,HNSI0001581,2890.40
Department of Health,Leicestershire Partnership NHS Trust,07/03/24,NURSE - BAND 5 - AGENCY,Rutland Ward Nursing,HCL NURSING,HNSI0001581,2642.86
Department of Health,Leicestershire Partnership NHS Trust,07/03/24,NURSE - BAND 2 - AGENCY,St Lukes Stroke Ward,HCL NURSING,HNSI0001581,8500.91
Department of Health,Leicestershire Partnership NHS Trust,07/03/24,NURSE - BAND 5 - AGENCY,St Lukes Stroke Ward,HCL NURSING,HNSI0001581,4314.10
Department of Health,Leicestershire Partnership NHS Trust,07/03/24,NURSE - BAND 2 - AGENCY,St Lukes Ward 3,HCL NURSING,HNSI0001581,4553.95
Department of Health,Leicestershire Partnership NHS Trust,07/03/24,NURSE - BAND 5 - AGENCY,St Lukes Ward 3,HCL NURSING,HNSI0001581,1717.06
Department of Health,Leicestershire Partnership NHS Trust,07/03/24,NURSE - BAND 5 - AGENCY,West Planned Care  - Charnwood Hub,HCL NURSING,HNSI0001581,11281.33
Department of Health,Leicestershire Partnership NHS Trust,07/03/24,NURSE - BAND 5 - AGENCY,West Planned Care  - Hinckley Hub,HCL NURSING,HNSI0001581,3798.02
Department of Health,Leicestershire Partnership NHS Trust,07/03/24,WIP Project Not in BS - Buildings excl Dwellings,Work in Progress,TILBURY DOUGLAS CONSTRUCTION LTD,24030048,923057.34
Department of Health,Leicestershire Partnership NHS Trust,07/03/24,Contract : Accomodation,Out of County Income - Inpateints Project,CYGNET HC LTD,MAS0335827,28739.00
Department of Health,Leicestershire Partnership NHS Trust,07/03/24,Healthcare Services / Recharges from Non-NHS Bodies,Marie Curie Service,MARIE CURIE CANCER CARE,19645,25559.28
Department of Health,Leicestershire Partnership NHS Trust,07/03/24,GP IT Expenditure,Area Team,SOFTCAT PLC,INVUK1184796,65301.11
Department of Health,Leicestershire Partnership NHS Trust,07/03/24,Computer License  Fees,Finance Department,SOFTCAT PLC,INVUK1213762,43947.74
Department of Health,Leicestershire Partnership NHS Trust,07/03/24,NURSE - BAND 2 - AGENCY,CAMHS Inpatient Service,HCL NURSING,HNSI0001582,6293.48
Department of Health,Leicestershire Partnership NHS Trust,07/03/24,NURSE - BAND 5 - AGENCY,CAMHS Inpatient Service,HCL NURSING,HNSI0001582,7789.67
Department of Health,Leicestershire Partnership NHS Trust,07/03/24,Nurse - Band 7 - Agency,CAMHS Waiting List Monies,HCL NURSING,HNSI0001582,1485.82
Department of Health,Leicestershire Partnership NHS Trust,07/03/24,Nurse - Band 7 - Agency,Crisis Response and Home Treatment,HCL NURSING,HNSI0001582,3328.05
Department of Health,Leicestershire Partnership NHS Trust,07/03/24,NURSE - BAND 2 - AGENCY,Welford Ward (Prev Langley),HCL NURSING,HNSI0001582,511.13
Department of Health,Leicestershire Partnership NHS Trust,07/03/24,NURSE - BAND 5 - AGENCY,Welford Ward (Prev Langley),HCL NURSING,HNSI0001582,2619.79
Department of Health,Leicestershire Partnership NHS Trust,07/03/24,Nurse - Band 6 -Agency,AMH - Central Access Point,HCL WORKFORCE SOLUTIONS,HWSI0002116,8936.67
Department of Health,Leicestershire Partnership NHS Trust,07/03/24,Nurse - Band 6 -Agency,Adult City Central CMHT - St Peters,HCL WORKFORCE SOLUTIONS,HWSI0002116,1479.54
Department of Health,Leicestershire Partnership NHS Trust,07/03/24,Nurse - Band 6 -Agency,Adult County South Leicestershire CMHT,HCL WORKFORCE SOLUTIONS,HWSI0002116,1390.84
Department of Health,Leicestershire Partnership NHS Trust,07/03/24,Nurse - Band 6 -Agency,Adult County- East Leicester CMHT,HCL WORKFORCE SOLUTIONS,HWSI0002116,202.25
Department of Health,Leicestershire Partnership NHS Trust,07/03/24,Nurse - Band 6 -Agency,City West CMHT MHSOP,HCL WORKFORCE SOLUTIONS,HWSI0002116,3969.86
Department of Health,Leicestershire Partnership NHS Trust,07/03/24,Nurse - Band 6 -Agency,Crisis Resolution,HCL WORKFORCE SOLUTIONS,HWSI0002116,6938.71
Department of Health,Leicestershire Partnership NHS Trust,07/03/24,Nurse - Band 6 -Agency,CAMHS Waiting List Monies,HCL WORKFORCE SOLUTIONS,HWSI0002117,9113.49
Department of Health,Leicestershire Partnership NHS Trust,07/03/24,Nurse - Band 7 - Agency,City West CMHT MHSOP,HCL WORKFORCE SOLUTIONS,HWSI0002117,1368.75
Department of Health,Leicestershire Partnership NHS Trust,07/03/24,Nurse - Band 6 -Agency,Crisis Response and Home Treatment,HCL WORKFORCE SOLUTIONS,HWSI0002117,10581.50
Department of Health,Leicestershire Partnership NHS Trust,07/03/24,Nurse - Band 6 -Agency,AMH - Central Access Point,HCL NURSING,HNSI0001580,1427.65
Department of Health,Leicestershire Partnership NHS Trust,07/03/24,Nurse - Band 6 -Agency,Adult City Central CMHT - St Peters,HCL NURSING,HNSI0001580,1365.26
Department of Health,Leicestershire Partnership NHS Trust,07/03/24,Nurse - Band 6 -Agency,Adult City East CMHT,HCL NURSING,HNSI0001580,1273.83
Department of Health,Leicestershire Partnership NHS Trust,07/03/24,Nurse - Band 6 -Agency,Adult County North West Leicestershire CMHT,HCL NURSING,HNSI0001580,813.17
Department of Health,Leicestershire Partnership NHS Trust,07/03/24,NURSE - BAND 2 - AGENCY,Agnes Unit,HCL NURSING,HNSI0001580,6064.09
Department of Health,Leicestershire Partnership NHS Trust,07/03/24,NURSE - BAND 5 - AGENCY,Agnes Unit,HCL NURSING,HNSI0001580,26395.46
Department of Health,Leicestershire Partnership NHS Trust,07/03/24,NURSE - BAND 2 - AGENCY,Ashby Ward (Bradgate Unit),HCL NURSING,HNSI0001580,1746.37
Department of Health,Leicestershire Partnership NHS Trust,07/03/24,NURSE - BAND 5 - AGENCY,Ashby Ward (Bradgate Unit),HCL NURSING,HNSI0001580,6077.67
Department of Health,Leicestershire Partnership NHS Trust,07/03/24,NURSE - BAND 5 - AGENCY,Aston Ward Bradgate Unit (Prev Welford),HCL NURSING,HNSI0001580,1368.40
Department of Health,Leicestershire Partnership NHS Trust,07/03/24,NURSE - BAND 2 - AGENCY,Beaumont Ward - Bradgate Unit,HCL NURSING,HNSI0001580,1105.53
Department of Health,Leicestershire Partnership NHS Trust,07/03/24,NURSE - BAND 5 - AGENCY,Beaumont Ward - Bradgate Unit,HCL NURSING,HNSI0001580,4942.81
Department of Health,Leicestershire Partnership NHS Trust,07/03/24,NURSE - BAND 2 - AGENCY,Belvoir Psychiatric Intensive Care Unit,HCL NURSING,HNSI0001580,411.68
Department of Health,Leicestershire Partnership NHS Trust,07/03/24,NURSE - BAND 5 - AGENCY,Belvoir Psychiatric Intensive Care Unit,HCL NURSING,HNSI0001580,2360.18
Department of Health,Leicestershire Partnership NHS Trust,07/03/24,NURSE - BAND 2 - AGENCY,Bosworth Ward - Bradgate Unit,HCL NURSING,HNSI0001580,233.91
Department of Health,Leicestershire Partnership NHS Trust,07/03/24,NURSE - BAND 5 - AGENCY,Bosworth Ward - Bradgate Unit,HCL NURSING,HNSI0001580,3466.85
Department of Health,Leicestershire Partnership NHS Trust,07/03/24,NURSE - BAND 5 - AGENCY,Cedar (Willows),HCL NURSING,HNSI0001580,1349.75
Department of Health,Leicestershire Partnership NHS Trust,07/03/24,Nurse - Band 6 -Agency,City East CMHT MHSOP,HCL NURSING,HNSI0001580,1046.25
Department of Health,Leicestershire Partnership NHS Trust,07/03/24,NURSE - BAND 2 - AGENCY,Coleman Ward,HCL NURSING,HNSI0001580,426.29
Department of Health,Leicestershire Partnership NHS Trust,07/03/24,NURSE - BAND 5 - AGENCY,Coleman Ward,HCL NURSING,HNSI0001580,3950.97
Department of Health,Leicestershire Partnership NHS Trust,07/03/24,NURSE - BAND 5 - AGENCY,Crisis Resolution,HCL NURSING,HNSI0001580,1811.78
Department of Health,Leicestershire Partnership NHS Trust,07/03/24,NURSE - BAND 2 - AGENCY,Griffin Ward (HPC),HCL NURSING,HNSI0001580,841.34
Department of Health,Leicestershire Partnership NHS Trust,07/03/24,NURSE - BAND 5 - AGENCY,Griffin Ward (HPC),HCL NURSING,HNSI0001580,5462.77
Department of Health,Leicestershire Partnership NHS Trust,07/03/24,NURSE - BAND 2 - AGENCY,Gwendolen Ward,HCL NURSING,HNSI0001580,1843.32
Department of Health,Leicestershire Partnership NHS Trust,07/03/24,NURSE - BAND 5 - AGENCY,Gwendolen Ward,HCL NURSING,HNSI0001580,5627.15
Department of Health,Leicestershire Partnership NHS Trust,07/03/24,NURSE - BAND 5 - AGENCY,Heather Ward,HCL NURSING,HNSI0001580,6566.79
Department of Health,Leicestershire Partnership NHS Trust,07/03/24,NURSE - BAND 2 - AGENCY,Kirby Ward,HCL NURSING,HNSI0001580,205.84
Department of Health,Leicestershire Partnership NHS Trust,07/03/24,NURSE - BAND 5 - AGENCY,Kirby Ward,HCL NURSING,HNSI0001580,3406.55
Department of Health,Leicestershire Partnership NHS Trust,07/03/24,NURSE - BAND 2 - AGENCY,Maple Ward,HCL NURSING,HNSI0001580,411.68
Department of Health,Leicestershire Partnership NHS Trust,07/03/24,NURSE - BAND 5 - AGENCY,Maple Ward,HCL NURSING,HNSI0001580,437.47
Department of Health,Leicestershire Partnership NHS Trust,07/03/24,NURSE - BAND 2 - AGENCY,Mill Lodge,HCL NURSING,HNSI0001580,254.23
Department of Health,Leicestershire Partnership NHS Trust,07/03/24,NURSE - BAND 5 - AGENCY,Mill Lodge,HCL NURSING,HNSI0001580,986.91
Department of Health,Leicestershire Partnership NHS Trust,07/03/24,NURSE - BAND 2 - AGENCY,Phoenix Ward (HPC),HCL NURSING,HNSI0001580,1244.86
Department of Health,Leicestershire Partnership NHS Trust,07/03/24,NURSE - BAND 5 - AGENCY,Phoenix Ward (HPC),HCL NURSING,HNSI0001580,3383.65
Department of Health,Leicestershire Partnership NHS Trust,07/03/24,NURSE - BAND 5 - AGENCY,Place Of Safety Assessment Unit,HCL NURSING,HNSI0001580,3163.50
Department of Health,Leicestershire Partnership NHS Trust,07/03/24,NURSE - BAND 5 - AGENCY,Sycamore (Willows),HCL NURSING,HNSI0001580,2604.33
Department of Health,Leicestershire Partnership NHS Trust,07/03/24,NURSE - BAND 5 - AGENCY,Thornton Ward - Bradgate Unit,HCL NURSING,HNSI0001580,437.47
Department of Health,Leicestershire Partnership NHS Trust,07/03/24,Nurse - Band 6 -Agency,CAMHS Waiting List Monies,HCL WORKFORCE SOLUTIONS,HWSI0002126,11901.95
Department of Health,Leicestershire Partnership NHS Trust,07/03/24,Nurse - Band 7 - Agency,City West CMHT MHSOP,HCL WORKFORCE SOLUTIONS,HWSI0002126,1368.75
Department of Health,Leicestershire Partnership NHS Trust,07/03/24,Nurse - Band 6 -Agency,Crisis Response and Home Treatment,HCL WORKFORCE SOLUTIONS,HWSI0002126,11621.09
Department of Health,Leicestershire Partnership NHS Trust,07/03/24,Nurse - Band 6 -Agency,AMH - Central Access Point,HCL WORKFORCE SOLUTIONS,HWSI0002125,9934.17
Department of Health,Leicestershire Partnership NHS Trust,07/03/24,Nurse - Band 6 -Agency,Adult City Central CMHT - St Peters,HCL WORKFORCE SOLUTIONS,HWSI0002125,1479.54
Department of Health,Leicestershire Partnership NHS Trust,07/03/24,Nurse - Band 6 -Agency,Adult County South Leicestershire CMHT,HCL WORKFORCE SOLUTIONS,HWSI0002125,1402.51
Department of Health,Leicestershire Partnership NHS Trust,07/03/24,Nurse - Band 6 -Agency,City West CMHT MHSOP,HCL WORKFORCE SOLUTIONS,HWSI0002125,1387.89
Department of Health,Leicestershire Partnership NHS Trust,07/03/24,Nurse - Band 6 -Agency,Crisis Resolution,HCL WORKFORCE SOLUTIONS,HWSI0002125,6944.74
Department of Health,Leicestershire Partnership NHS Trust,07/03/24,Nurse - Band 6 -Agency,Mental Health Liaison Team,HCL WORKFORCE SOLUTIONS,HWSI0002125,494.43
Department of Health,Leicestershire Partnership NHS Trust,07/03/24,Nurse - Band 6 -Agency,AMH - Central Access Point,HCL NURSING,HNSI0001584,3117.22
Department of Health,Leicestershire Partnership NHS Trust,07/03/24,Nurse - Band 6 -Agency,Adult City Central CMHT - St Peters,HCL NURSING,HNSI0001584,1092.21
Department of Health,Leicestershire Partnership NHS Trust,07/03/24,Nurse - Band 6 -Agency,Adult City East CMHT,HCL NURSING,HNSI0001584,1057.54
Department of Health,Leicestershire Partnership NHS Trust,07/03/24,Nurse - Band 6 -Agency,Adult County North West Leicestershire CMHT,HCL NURSING,HNSI0001584,1626.35
Department of Health,Leicestershire Partnership NHS Trust,07/03/24,NURSE - BAND 2 - AGENCY,Agnes Unit,HCL NURSING,HNSI0001584,5336.70
Department of Health,Leicestershire Partnership NHS Trust,07/03/24,NURSE - BAND 5 - AGENCY,Agnes Unit,HCL NURSING,HNSI0001584,24299.54
Department of Health,Leicestershire Partnership NHS Trust,07/03/24,NURSE - BAND 2 - AGENCY,Ashby Ward (Bradgate Unit),HCL NURSING,HNSI0001584,205.84
Department of Health,Leicestershire Partnership NHS Trust,07/03/24,NURSE - BAND 5 - AGENCY,Ashby Ward (Bradgate Unit),HCL NURSING,HNSI0001584,2566.42
Department of Health,Leicestershire Partnership NHS Trust,07/03/24,NURSE - BAND 5 - AGENCY,Aston Ward Bradgate Unit (Prev Welford),HCL NURSING,HNSI0001584,493.45
Department of Health,Leicestershire Partnership NHS Trust,07/03/24,NURSE - BAND 2 - AGENCY,Beaumont Ward - Bradgate Unit,HCL NURSING,HNSI0001584,815.24
Department of Health,Leicestershire Partnership NHS Trust,07/03/24,NURSE - BAND 5 - AGENCY,Beaumont Ward - Bradgate Unit,HCL NURSING,HNSI0001584,8569.99
Department of Health,Leicestershire Partnership NHS Trust,07/03/24,NURSE - BAND 2 - AGENCY,Belvoir Psychiatric Intensive Care Unit,HCL NURSING,HNSI0001584,811.88
Department of Health,Leicestershire Partnership NHS Trust,07/03/24,NURSE - BAND 5 - AGENCY,Belvoir Psychiatric Intensive Care Unit,HCL NURSING,HNSI0001584,4310.45
Department of Health,Leicestershire Partnership NHS Trust,07/03/24,NURSE - BAND 5 - AGENCY,Bosworth Ward - Bradgate Unit,HCL NURSING,HNSI0001584,2838.63
Department of Health,Leicestershire Partnership NHS Trust,07/03/24,NURSE - BAND 5 - AGENCY,Cedar (Willows),HCL NURSING,HNSI0001584,1876.85
Department of Health,Leicestershire Partnership NHS Trust,07/03/24,Nurse - Band 6 -Agency,City East CMHT MHSOP,HCL NURSING,HNSI0001584,1046.25
Department of Health,Leicestershire Partnership NHS Trust,07/03/24,NURSE - BAND 2 - AGENCY,Coleman Ward,HCL NURSING,HNSI0001584,1390.63
Department of Health,Leicestershire Partnership NHS Trust,07/03/24,NURSE - BAND 5 - AGENCY,Coleman Ward,HCL NURSING,HNSI0001584,4176.50
Department of Health,Leicestershire Partnership NHS Trust,07/03/24,NURSE - BAND 5 - AGENCY,Crisis Resolution,HCL NURSING,HNSI0001584,894.69
Department of Health,Leicestershire Partnership NHS Trust,07/03/24,NURSE - BAND 2 - AGENCY,Griffin Ward (HPC),HCL NURSING,HNSI0001584,665.91
Department of Health,Leicestershire Partnership NHS Trust,07/03/24,NURSE - BAND 5 - AGENCY,Griffin Ward (HPC),HCL NURSING,HNSI0001584,2003.96
Department of Health,Leicestershire Partnership NHS Trust,07/03/24,NURSE - BAND 2 - AGENCY,Gwendolen Ward,HCL NURSING,HNSI0001584,3824.96
Department of Health,Leicestershire Partnership NHS Trust,07/03/24,NURSE - BAND 5 - AGENCY,Gwendolen Ward,HCL NURSING,HNSI0001584,5790.91
Department of Health,Leicestershire Partnership NHS Trust,07/03/24,NURSE - BAND 2 - AGENCY,Heather Ward,HCL NURSING,HNSI0001584,805.35
Department of Health,Leicestershire Partnership NHS Trust,07/03/24,NURSE - BAND 5 - AGENCY,Heather Ward,HCL NURSING,HNSI0001584,3187.73
Department of Health,Leicestershire Partnership NHS Trust,07/03/24,NURSE - BAND 2 - AGENCY,Kirby Ward,HCL NURSING,HNSI0001584,205.84
Department of Health,Leicestershire Partnership NHS Trust,07/03/24,NURSE - BAND 5 - AGENCY,Kirby Ward,HCL NURSING,HNSI0001584,425.27
Department of Health,Leicestershire Partnership NHS Trust,07/03/24,NURSE - BAND 5 - AGENCY,Maple Ward,HCL NURSING,HNSI0001584,493.45
Department of Health,Leicestershire Partnership NHS Trust,07/03/24,NURSE - BAND 2 - AGENCY,Mill Lodge,HCL NURSING,HNSI0001584,254.23
Department of Health,Leicestershire Partnership NHS Trust,07/03/24,NURSE - BAND 5 - AGENCY,Mill Lodge,HCL NURSING,HNSI0001584,2816.78
Department of Health,Leicestershire Partnership NHS Trust,07/03/24,NURSE - BAND 2 - AGENCY,Phoenix Ward (HPC),HCL NURSING,HNSI0001584,1254.19
Department of Health,Leicestershire Partnership NHS Trust,07/03/24,NURSE - BAND 5 - AGENCY,Phoenix Ward (HPC),HCL NURSING,HNSI0001584,4954.10
Department of Health,Leicestershire Partnership NHS Trust,07/03/24,NURSE - BAND 2 - AGENCY,Place Of Safety Assessment Unit,HCL NURSING,HNSI0001584,207.89
Department of Health,Leicestershire Partnership NHS Trust,07/03/24,NURSE - BAND 5 - AGENCY,Place Of Safety Assessment Unit,HCL NURSING,HNSI0001584,2969.05
Department of Health,Leicestershire Partnership NHS Trust,07/03/24,NURSE - BAND 5 - AGENCY,Sycamore (Willows),HCL NURSING,HNSI0001584,2433.83
Department of Health,Leicestershire Partnership NHS Trust,07/03/24,NURSE - BAND 5 - AGENCY,Thornton Ward - Bradgate Unit,HCL NURSING,HNSI0001584,1875.31
Department of Health,Leicestershire Partnership NHS Trust,07/03/24,NURSE - BAND 2 - AGENCY,Watermead Ward (Bradgate Unit),HCL NURSING,HNSI0001584,254.23
Department of Health,Leicestershire Partnership NHS Trust,08/03/24,Healthcare Services / Recharges from Non-NHS Bodies,Adult Eating Disorder Collaborative,ELLERN MEDE MOORGATE,OTM0891,34800.00
Department of Health,Leicestershire Partnership NHS Trust,08/03/24,Legal Fees,Chief Executives Office,BROWNE JACOBSON LLP,1057302,55038.47
Department of Health,Leicestershire Partnership NHS Trust,08/03/24,WIP Project Not in BS - Buildings excl Dwellings,Work in Progress,PRESTIGE KITCHENS BEDROOMS LTD,PKBL1576,200790.00
Department of Health,Leicestershire Partnership NHS Trust,08/03/24,External Data Processing / Storage,Medical Devices Maintenance (LPT),MEDSTROM HEALTHCARE,CN12239,-25951.20
Department of Health,Leicestershire Partnership NHS Trust,11/03/24,Electricity,Estates & Facilities Central,UHL NHS TRUST (RWE),L0279599,45004.61
Department of Health,Leicestershire Partnership NHS Trust,11/03/24,Gas,"Herschel Prins (P9, LPT)",UHL NHS TRUST (RWE),L0279599,11251.15
Department of Health,Leicestershire Partnership NHS Trust,11/03/24,Occupational Health,HR Operations,UHL NHS TRUST (RWE),L0279593,88138.00
Department of Health,Leicestershire Partnership NHS Trust,11/03/24,Crs_NHS_LT1y -Resus Inventory Supplied.,Balance Sheet Collection,SUPPLY CHAIN CO LTD,1124330606,33598.35
Department of Health,Leicestershire Partnership NHS Trust,12/03/24,Network Costs - WAN Maint,HIS Infrastructure,VIRGIN MEDIA BUSINESS,262421-218,35810.74
Department of Health,Leicestershire Partnership NHS Trust,12/03/24,Professional & Technical Agency,LLR Shared Care Record Programme,SYNANETICS LTD,INV-00508,120000.00
Department of Health,Leicestershire Partnership NHS Trust,12/03/24,Systems Development and Hosting,AHP,UHL NHS TRUST (RWE),C0028612,-30000.00
Department of Health,Leicestershire Partnership NHS Trust,13/03/24,Med Trainees - FY1,Medical Trainees,UHL NHS TRUST (RWE),L0279617,29206.73
Department of Health,Leicestershire Partnership NHS Trust,13/03/24,Med Trainees - FY1,Medical Trainees,UHL NHS TRUST (RWE),L0279621,31423.49
Department of Health,Leicestershire Partnership NHS Trust,13/03/24,Healthcare Services / Recharges from Non-NHS Bodies,Medical Trainees,UNIVERSITY OF LEICESTER,2230130973,161814.54
Department of Health,Leicestershire Partnership NHS Trust,13/03/24,Services / Recharges from NHS Trusts,Inter Unit I & E Distribution,UHL NHS TRUST (RWE),L0279645,94664.84
Department of Health,Leicestershire Partnership NHS Trust,14/03/24,Services / Recharges from NHS Trusts,Adult Eating Disorder Collaborative,NORTHAMPTONSHIRE HC NHS FT (RP1),5155223,25000.00
Department of Health,Leicestershire Partnership NHS Trust,14/03/24,Services / Recharges from NHS Trusts,Inter Unit I & E Distribution,UHL NHS TRUST (RWE),L0279698,39074.56
Department of Health,Leicestershire Partnership NHS Trust,14/03/24,Services / Recharges from NHS Trusts,Inter Unit I & E Distribution,UHL NHS TRUST (RWE),L0279699,37351.27
Department of Health,Leicestershire Partnership NHS Trust,14/03/24,Mobile Telephone Rental / Calls,Specific Unit Budget Reserves,VODAFONE CORPORATE LTD,MARCH2024,71354.02
Department of Health,Leicestershire Partnership NHS Trust,14/03/24,Systems Development and Hosting,LLR Shared Care Record Programme,SYNANETICS LTD,INV-00510,81000.00
Department of Health,Leicestershire Partnership NHS Trust,15/03/24,WIP Project Not in BS - Buildings excl Dwellings,Work in Progress,AES CONTROL SYSTEMS,921709,159367.96
Department of Health,Leicestershire Partnership NHS Trust,18/03/24,Printing Costs,Estates & Facilities Central,LEXMARK INTERNATIONAL LTD,900650307913,26673.56
Department of Health,Leicestershire Partnership NHS Trust,18/03/24,Nurse - Band 6 -Agency,AMH - Central Access Point,HCL WORKFORCE SOLUTIONS,HWSI0002135,10822.83
Department of Health,Leicestershire Partnership NHS Trust,18/03/24,Nurse - Band 6 -Agency,Adult City Central CMHT - St Peters,HCL WORKFORCE SOLUTIONS,HWSI0002135,1479.54
Department of Health,Leicestershire Partnership NHS Trust,18/03/24,Nurse - Band 6 -Agency,Adult City East CMHT,HCL WORKFORCE SOLUTIONS,HWSI0002135,2220.62
Department of Health,Leicestershire Partnership NHS Trust,18/03/24,Nurse - Band 6 -Agency,Adult County South Leicestershire CMHT,HCL WORKFORCE SOLUTIONS,HWSI0002135,1375.58
Department of Health,Leicestershire Partnership NHS Trust,18/03/24,Nurse - Band 6 -Agency,City West CMHT MHSOP,HCL WORKFORCE SOLUTIONS,HWSI0002135,1387.89
Department of Health,Leicestershire Partnership NHS Trust,18/03/24,Nurse - Band 6 -Agency,Crisis Resolution,HCL WORKFORCE SOLUTIONS,HWSI0002135,6244.43
Department of Health,Leicestershire Partnership NHS Trust,18/03/24,Nurse - Band 6 -Agency,Mental Health Liaison Team,HCL WORKFORCE SOLUTIONS,HWSI0002135,2310.78
Department of Health,Leicestershire Partnership NHS Trust,18/03/24,Nurse - Band 6 -Agency,CAMHS Waiting List Monies,HCL WORKFORCE SOLUTIONS,HWSI0002136,12834.97
Department of Health,Leicestershire Partnership NHS Trust,18/03/24,Nurse - Band 7 - Agency,City West CMHT MHSOP,HCL WORKFORCE SOLUTIONS,HWSI0002136,1368.75
Department of Health,Leicestershire Partnership NHS Trust,18/03/24,Nurse - Band 6 -Agency,Crisis Response and Home Treatment,HCL WORKFORCE SOLUTIONS,HWSI0002136,10774.32
Department of Health,Leicestershire Partnership NHS Trust,18/03/24,Nurse - Band 6 -Agency,AMH - Central Access Point,HCL NURSING,HNSI0001589,1779.60
Department of Health,Leicestershire Partnership NHS Trust,18/03/24,Nurse - Band 6 -Agency,Adult City Central CMHT - St Peters,HCL NURSING,HNSI0001589,2484.91
Department of Health,Leicestershire Partnership NHS Trust,18/03/24,NURSE - BAND 2 - AGENCY,Agnes Unit,HCL NURSING,HNSI0001589,4853.59
Department of Health,Leicestershire Partnership NHS Trust,18/03/24,NURSE - BAND 5 - AGENCY,Agnes Unit,HCL NURSING,HNSI0001589,21859.84
Department of Health,Leicestershire Partnership NHS Trust,18/03/24,NURSE - BAND 2 - AGENCY,Ashby Ward (Bradgate Unit),HCL NURSING,HNSI0001589,565.33
Department of Health,Leicestershire Partnership NHS Trust,18/03/24,NURSE - BAND 5 - AGENCY,Ashby Ward (Bradgate Unit),HCL NURSING,HNSI0001589,3395.52
Department of Health,Leicestershire Partnership NHS Trust,18/03/24,NURSE - BAND 2 - AGENCY,Aston Ward Bradgate Unit (Prev Welford),HCL NURSING,HNSI0001589,1425.98
Department of Health,Leicestershire Partnership NHS Trust,18/03/24,NURSE - BAND 5 - AGENCY,Aston Ward Bradgate Unit (Prev Welford),HCL NURSING,HNSI0001589,1917.47
Department of Health,Leicestershire Partnership NHS Trust,18/03/24,NURSE - BAND 5 - AGENCY,Beaumont Ward - Bradgate Unit,HCL NURSING,HNSI0001589,5982.05
Department of Health,Leicestershire Partnership NHS Trust,18/03/24,NURSE - BAND 2 - AGENCY,Belvoir Psychiatric Intensive Care Unit,HCL NURSING,HNSI0001589,617.53
Department of Health,Leicestershire Partnership NHS Trust,18/03/24,NURSE - BAND 5 - AGENCY,Belvoir Psychiatric Intensive Care Unit,HCL NURSING,HNSI0001589,6277.88
Department of Health,Leicestershire Partnership NHS Trust,18/03/24,NURSE - BAND 2 - AGENCY,Bosworth Ward - Bradgate Unit,HCL NURSING,HNSI0001589,441.87
Department of Health,Leicestershire Partnership NHS Trust,18/03/24,NURSE - BAND 5 - AGENCY,Bosworth Ward - Bradgate Unit,HCL NURSING,HNSI0001589,830.38
Department of Health,Leicestershire Partnership NHS Trust,18/03/24,NURSE - BAND 2 - AGENCY,Cedar (Willows),HCL NURSING,HNSI0001589,203.06
Department of Health,Leicestershire Partnership NHS Trust,18/03/24,NURSE - BAND 5 - AGENCY,Cedar (Willows),HCL NURSING,HNSI0001589,437.47
Department of Health,Leicestershire Partnership NHS Trust,18/03/24,Nurse - Band 6 -Agency,City East CMHT MHSOP,HCL NURSING,HNSI0001589,1046.25
Department of Health,Leicestershire Partnership NHS Trust,18/03/24,NURSE - BAND 2 - AGENCY,Coleman Ward,HCL NURSING,HNSI0001589,418.26
Department of Health,Leicestershire Partnership NHS Trust,18/03/24,NURSE - BAND 5 - AGENCY,Coleman Ward,HCL NURSING,HNSI0001589,4182.15
Department of Health,Leicestershire Partnership NHS Trust,18/03/24,NURSE - BAND 5 - AGENCY,Crisis Resolution,HCL NURSING,HNSI0001589,1449.66
Department of Health,Leicestershire Partnership NHS Trust,18/03/24,Nurse - Band 6 -Agency,Crisis Resolution,HCL NURSING,HNSI0001589,409.32
Department of Health,Leicestershire Partnership NHS Trust,18/03/24,NURSE - BAND 5 - AGENCY,Griffin Ward (HPC),HCL NURSING,HNSI0001589,2457.14
Department of Health,Leicestershire Partnership NHS Trust,18/03/24,NURSE - BAND 2 - AGENCY,Gwendolen Ward,HCL NURSING,HNSI0001589,1247.40
Department of Health,Leicestershire Partnership NHS Trust,18/03/24,NURSE - BAND 5 - AGENCY,Gwendolen Ward,HCL NURSING,HNSI0001589,8013.18
Department of Health,Leicestershire Partnership NHS Trust,18/03/24,NURSE - BAND 2 - AGENCY,Heather Ward,HCL NURSING,HNSI0001589,498.23
Department of Health,Leicestershire Partnership NHS Trust,18/03/24,NURSE - BAND 5 - AGENCY,Heather Ward,HCL NURSING,HNSI0001589,2034.66
Department of Health,Leicestershire Partnership NHS Trust,18/03/24,NURSE - BAND 2 - AGENCY,Kirby Ward,HCL NURSING,HNSI0001589,411.68
Department of Health,Leicestershire Partnership NHS Trust,18/03/24,NURSE - BAND 5 - AGENCY,Kirby Ward,HCL NURSING,HNSI0001589,1805.87
Department of Health,Leicestershire Partnership NHS Trust,18/03/24,NURSE - BAND 5 - AGENCY,Maple Ward,HCL NURSING,HNSI0001589,493.45
Department of Health,Leicestershire Partnership NHS Trust,18/03/24,NURSE - BAND 2 - AGENCY,Mill Lodge,HCL NURSING,HNSI0001589,205.84
Department of Health,Leicestershire Partnership NHS Trust,18/03/24,NURSE - BAND 5 - AGENCY,Mill Lodge,HCL NURSING,HNSI0001589,1589.65
Department of Health,Leicestershire Partnership NHS Trust,18/03/24,NURSE - BAND 2 - AGENCY,Phoenix Ward (HPC),HCL NURSING,HNSI0001589,1318.81
Department of Health,Leicestershire Partnership NHS Trust,18/03/24,NURSE - BAND 5 - AGENCY,Phoenix Ward (HPC),HCL NURSING,HNSI0001589,4409.10
Department of Health,Leicestershire Partnership NHS Trust,18/03/24,NURSE - BAND 2 - AGENCY,Place Of Safety Assessment Unit,HCL NURSING,HNSI0001589,659.79
Department of Health,Leicestershire Partnership NHS Trust,18/03/24,NURSE - BAND 5 - AGENCY,Place Of Safety Assessment Unit,HCL NURSING,HNSI0001589,3902.51
Department of Health,Leicestershire Partnership NHS Trust,18/03/24,NURSE - BAND 2 - AGENCY,Sycamore (Willows),HCL NURSING,HNSI0001589,205.84
Department of Health,Leicestershire Partnership NHS Trust,18/03/24,NURSE - BAND 5 - AGENCY,Sycamore (Willows),HCL NURSING,HNSI0001589,295.84
Department of Health,Leicestershire Partnership NHS Trust,18/03/24,NURSE - BAND 5 - AGENCY,Thornton Ward - Bradgate Unit,HCL NURSING,HNSI0001589,1383.40
Department of Health,Leicestershire Partnership NHS Trust,19/03/24,Nurse - Band 6 -Agency,AMH - Central Access Point,HCL NURSING,HNSI0001594,3526.96
Department of Health,Leicestershire Partnership NHS Trust,19/03/24,Nurse - Band 6 -Agency,Adult City Central CMHT - St Peters,HCL NURSING,HNSI0001594,1092.21
Department of Health,Leicestershire Partnership NHS Trust,19/03/24,Nurse - Band 6 -Agency,Adult City East CMHT,HCL NURSING,HNSI0001594,1399.43
Department of Health,Leicestershire Partnership NHS Trust,19/03/24,Nurse - Band 6 -Agency,Adult County North West Leicestershire CMHT,HCL NURSING,HNSI0001594,1626.35
Department of Health,Leicestershire Partnership NHS Trust,19/03/24,NURSE - BAND 2 - AGENCY,Agnes Unit,HCL NURSING,HNSI0001594,5114.52
Department of Health,Leicestershire Partnership NHS Trust,19/03/24,NURSE - BAND 5 - AGENCY,Agnes Unit,HCL NURSING,HNSI0001594,21183.39
Department of Health,Leicestershire Partnership NHS Trust,19/03/24,NURSE - BAND 2 - AGENCY,Ashby Ward (Bradgate Unit),HCL NURSING,HNSI0001594,168.26
Department of Health,Leicestershire Partnership NHS Trust,19/03/24,NURSE - BAND 5 - AGENCY,Ashby Ward (Bradgate Unit),HCL NURSING,HNSI0001594,6751.32
Department of Health,Leicestershire Partnership NHS Trust,19/03/24,NURSE - BAND 2 - AGENCY,Aston Ward Bradgate Unit (Prev Welford),HCL NURSING,HNSI0001594,478.88
Department of Health,Leicestershire Partnership NHS Trust,19/03/24,NURSE - BAND 5 - AGENCY,Aston Ward Bradgate Unit (Prev Welford),HCL NURSING,HNSI0001594,1572.06
Department of Health,Leicestershire Partnership NHS Trust,19/03/24,NURSE - BAND 2 - AGENCY,Beaumont Ward - Bradgate Unit,HCL NURSING,HNSI0001594,478.88
Department of Health,Leicestershire Partnership NHS Trust,19/03/24,NURSE - BAND 5 - AGENCY,Beaumont Ward - Bradgate Unit,HCL NURSING,HNSI0001594,7377.24
Department of Health,Leicestershire Partnership NHS Trust,19/03/24,NURSE - BAND 2 - AGENCY,Belvoir Psychiatric Intensive Care Unit,HCL NURSING,HNSI0001594,634.11
Department of Health,Leicestershire Partnership NHS Trust,19/03/24,NURSE - BAND 5 - AGENCY,Belvoir Psychiatric Intensive Care Unit,HCL NURSING,HNSI0001594,4313.11
Department of Health,Leicestershire Partnership NHS Trust,19/03/24,NURSE - BAND 5 - AGENCY,Bosworth Ward - Bradgate Unit,HCL NURSING,HNSI0001594,874.95
Department of Health,Leicestershire Partnership NHS Trust,19/03/24,NURSE - BAND 5 - AGENCY,Cedar (Willows),HCL NURSING,HNSI0001594,721.11
Department of Health,Leicestershire Partnership NHS Trust,19/03/24,Nurse - Band 6 -Agency,City East CMHT MHSOP,HCL NURSING,HNSI0001594,1046.25
Department of Health,Leicestershire Partnership NHS Trust,19/03/24,NURSE - BAND 2 - AGENCY,Coleman Ward,HCL NURSING,HNSI0001594,961.18
Department of Health,Leicestershire Partnership NHS Trust,19/03/24,NURSE - BAND 5 - AGENCY,Coleman Ward,HCL NURSING,HNSI0001594,1263.12
Department of Health,Leicestershire Partnership NHS Trust,19/03/24,NURSE - BAND 5 - AGENCY,Crisis Resolution,HCL NURSING,HNSI0001594,930.03
Department of Health,Leicestershire Partnership NHS Trust,19/03/24,Nurse - Band 6 -Agency,Crisis Resolution,HCL NURSING,HNSI0001594,1509.99
Department of Health,Leicestershire Partnership NHS Trust,19/03/24,NURSE - BAND 2 - AGENCY,Griffin Ward (HPC),HCL NURSING,HNSI0001594,658.78
Department of Health,Leicestershire Partnership NHS Trust,19/03/24,NURSE - BAND 5 - AGENCY,Griffin Ward (HPC),HCL NURSING,HNSI0001594,4304.60
Department of Health,Leicestershire Partnership NHS Trust,19/03/24,NURSE - BAND 2 - AGENCY,Gwendolen Ward,HCL NURSING,HNSI0001594,1768.29
Department of Health,Leicestershire Partnership NHS Trust,19/03/24,NURSE - BAND 5 - AGENCY,Gwendolen Ward,HCL NURSING,HNSI0001594,4138.55
Department of Health,Leicestershire Partnership NHS Trust,19/03/24,NURSE - BAND 2 - AGENCY,Heather Ward,HCL NURSING,HNSI0001594,488.00
Department of Health,Leicestershire Partnership NHS Trust,19/03/24,NURSE - BAND 5 - AGENCY,Heather Ward,HCL NURSING,HNSI0001594,4462.29
Department of Health,Leicestershire Partnership NHS Trust,19/03/24,NURSE - BAND 5 - AGENCY,Kirby Ward,HCL NURSING,HNSI0001594,976.78
Department of Health,Leicestershire Partnership NHS Trust,19/03/24,NURSE - BAND 2 - AGENCY,Maple Ward,HCL NURSING,HNSI0001594,372.53
Department of Health,Leicestershire Partnership NHS Trust,19/03/24,NURSE - BAND 5 - AGENCY,Maple Ward,HCL NURSING,HNSI0001594,539.30
Department of Health,Leicestershire Partnership NHS Trust,19/03/24,NURSE - BAND 5 - AGENCY,Mill Lodge,HCL NURSING,HNSI0001594,483.96
Department of Health,Leicestershire Partnership NHS Trust,19/03/24,NURSE - BAND 2 - AGENCY,Phoenix Ward (HPC),HCL NURSING,HNSI0001594,205.84
Department of Health,Leicestershire Partnership NHS Trust,19/03/24,NURSE - BAND 5 - AGENCY,Phoenix Ward (HPC),HCL NURSING,HNSI0001594,2535.57
Department of Health,Leicestershire Partnership NHS Trust,19/03/24,NURSE - BAND 2 - AGENCY,Place Of Safety Assessment Unit,HCL NURSING,HNSI0001594,448.46
Department of Health,Leicestershire Partnership NHS Trust,19/03/24,NURSE - BAND 5 - AGENCY,Place Of Safety Assessment Unit,HCL NURSING,HNSI0001594,2927.74
Department of Health,Leicestershire Partnership NHS Trust,19/03/24,NURSE - BAND 2 - AGENCY,Sycamore (Willows),HCL NURSING,HNSI0001594,207.41
Department of Health,Leicestershire Partnership NHS Trust,19/03/24,NURSE - BAND 5 - AGENCY,Sycamore (Willows),HCL NURSING,HNSI0001594,302.13
Department of Health,Leicestershire Partnership NHS Trust,19/03/24,NURSE - BAND 5 - AGENCY,Thornton Ward - Bradgate Unit,HCL NURSING,HNSI0001594,437.47
Department of Health,Leicestershire Partnership NHS Trust,19/03/24,Gas,"Beaumont Leys Health Centre (P94, LPT)",TOTAL GAS & POWER LTD,334408365/24,1987.93
Department of Health,Leicestershire Partnership NHS Trust,19/03/24,Gas,"Bennion Centre (including Forest Grange Day Unit) (P8, LPT)",TOTAL GAS & POWER LTD,334408365/24,19952.02
Department of Health,Leicestershire Partnership NHS Trust,19/03/24,Gas,"Bradgate Unit (including Glenvale day Unit) (P7, LPT)",TOTAL GAS & POWER LTD,334408365/24,44962.70
Department of Health,Leicestershire Partnership NHS Trust,19/03/24,Gas,Bridge Park Plaza - First Floor (LPT),TOTAL GAS & POWER LTD,334408365/24,3932.34
Department of Health,Leicestershire Partnership NHS Trust,19/03/24,Gas,"Bridge Park Road - Units 2 and 3 (P148, LPT)",TOTAL GAS & POWER LTD,334408365/24,560.27
Department of Health,Leicestershire Partnership NHS Trust,19/03/24,Gas,"Coalville Community Hospital (P138, LPT)",TOTAL GAS & POWER LTD,334408365/24,26983.22
Department of Health,Leicestershire Partnership NHS Trust,19/03/24,Gas,"Coalville Health Centre (P121, LPT)",TOTAL GAS & POWER LTD,334408365/24,2047.60
Department of Health,Leicestershire Partnership NHS Trust,19/03/24,Gas,"Evington Centre (P6, LPT)",TOTAL GAS & POWER LTD,334408365/24,3633.71
Department of Health,Leicestershire Partnership NHS Trust,19/03/24,Gas,"Farm Lodge (P34, LPT)",TOTAL GAS & POWER LTD,334408365/24,524.65
Department of Health,Leicestershire Partnership NHS Trust,19/03/24,Gas,"Feilding Palmer Hospital (Lutterworth) (P131, LPT)",TOTAL GAS & POWER LTD,334408365/24,4498.13
Department of Health,Leicestershire Partnership NHS Trust,19/03/24,Gas,"Frith Cottages 3 & 4 (P36, LPT)",TOTAL GAS & POWER LTD,334408365/24,344.79
Department of Health,Leicestershire Partnership NHS Trust,19/03/24,Gas,HIS,TOTAL GAS & POWER LTD,334408365/24,685.73
Department of Health,Leicestershire Partnership NHS Trust,19/03/24,Gas,"Hawthorne Centre - Coalville (P14, LPT)",TOTAL GAS & POWER LTD,334408365/24,1427.35
Department of Health,Leicestershire Partnership NHS Trust,19/03/24,Gas,"Hinckley and Bosworth Community Hospital (Sunnyside) (P133, LPT)",TOTAL GAS & POWER LTD,334408365/24,17430.41
Department of Health,Leicestershire Partnership NHS Trust,19/03/24,Gas,"Hynca Lodge (P33, LPT)",TOTAL GAS & POWER LTD,334408365/24,1279.72
Department of Health,Leicestershire Partnership NHS Trust,19/03/24,Gas,"LGH - Gwendolen House (P4, LPT)",TOTAL GAS & POWER LTD,334408365/24,5034.80
Department of Health,Leicestershire Partnership NHS Trust,19/03/24,Gas,"Loughborough Hospital (P136, LPT)",TOTAL GAS & POWER LTD,334408365/24,50514.17
Department of Health,Leicestershire Partnership NHS Trust,19/03/24,Gas,Mawson House (LPT),TOTAL GAS & POWER LTD,334408365/24,1904.65
Department of Health,Leicestershire Partnership NHS Trust,19/03/24,Gas,"Mett Centre (P49, LPT)",TOTAL GAS & POWER LTD,334408365/24,838.67
Department of Health,Leicestershire Partnership NHS Trust,19/03/24,Gas,"Narborough Health Centre (P117, LPT)",TOTAL GAS & POWER LTD,334408365/24,1633.39
Department of Health,Leicestershire Partnership NHS Trust,19/03/24,Gas,"Neville Centre - LGH (was DSC) (P147, LPT)",TOTAL GAS & POWER LTD,334408365/24,3207.90
Department of Health,Leicestershire Partnership NHS Trust,19/03/24,Gas,"OSL House (P54, LPT)",TOTAL GAS & POWER LTD,334408365/24,2004.76
Department of Health,Leicestershire Partnership NHS Trust,19/03/24,Gas,"Orchard Resource Centre (P15, LPT)",TOTAL GAS & POWER LTD,334408365/24,1464.53
Department of Health,Leicestershire Partnership NHS Trust,19/03/24,Gas,"Rutland Memorial Hospital (P134, LPT)",TOTAL GAS & POWER LTD,334408365/24,351.39
Department of Health,Leicestershire Partnership NHS Trust,19/03/24,Gas,"Shepshed Health Centre (P123, LPT)",TOTAL GAS & POWER LTD,334408365/24,1906.94
Department of Health,Leicestershire Partnership NHS Trust,19/03/24,Gas,"Springfield Road Health Centre (P92, LPT)",TOTAL GAS & POWER LTD,334408365/24,1630.92
Department of Health,Leicestershire Partnership NHS Trust,19/03/24,Gas,"Stewart House (P61, LPT)",TOTAL GAS & POWER LTD,334408365/24,11418.93
Department of Health,Leicestershire Partnership NHS Trust,19/03/24,Gas,"Swithland House - London Road 352 (P44, LPT)",TOTAL GAS & POWER LTD,334408365/24,2931.70
Department of Health,Leicestershire Partnership NHS Trust,19/03/24,Gas,"The Agnes Unit (AKA Assessment and Treatment Centre) (P85, LPT)",TOTAL GAS & POWER LTD,334408365/24,10648.68
Department of Health,Leicestershire Partnership NHS Trust,19/03/24,Gas,The Beacon,TOTAL GAS & POWER LTD,334408365/24,4175.16
Department of Health,Leicestershire Partnership NHS Trust,19/03/24,Gas,"The Cedars (P19, LPT)",TOTAL GAS & POWER LTD,334408365/24,1014.79
Department of Health,Leicestershire Partnership NHS Trust,19/03/24,Gas,"The Grange 1 (P4, LPT)",TOTAL GAS & POWER LTD,334408365/24,856.82
Department of Health,Leicestershire Partnership NHS Trust,19/03/24,Gas,"The Grange 2 (P41, LPT)",TOTAL GAS & POWER LTD,334408365/24,647.24
Department of Health,Leicestershire Partnership NHS Trust,19/03/24,Gas,"The Willows - Cordelia Close (P22, LPT)",TOTAL GAS & POWER LTD,334408365/24,9548.09
Department of Health,Leicestershire Partnership NHS Trust,19/03/24,Gas,"Valentine Centre (P3, LPT)",TOTAL GAS & POWER LTD,334408365/24,5390.03
Department of Health,Leicestershire Partnership NHS Trust,19/03/24,Gas,"Westcotes Group -Westcotes House (P78, LPT)",TOTAL GAS & POWER LTD,334408365/24,3085.89
Department of Health,Leicestershire Partnership NHS Trust,19/03/24,Gas,"Winstanley Drive Health Centre (P8, LPT)",TOTAL GAS & POWER LTD,334408365/24,1640.42
Department of Health,Leicestershire Partnership NHS Trust,19/03/24,Computer Software,Leicester City CCG IT Recharge,FOREIGN DRAFT UPDATE.,INVCH000025,25000.00
Department of Health,Leicestershire Partnership NHS Trust,19/03/24,Crs_NHS_LT1y -Resus Inventory Supplied.,Balance Sheet Collection,SUPPLY CHAIN CO LTD,1124337471,42344.35
Department of Health,Leicestershire Partnership NHS Trust,19/03/24,Landline Telephone Rental / Calls,"Beaumont Leys Health Centre (P94, LPT)",VIRGIN MEDIA BUSINESS,853083001/004/0324,366.31
Department of Health,Leicestershire Partnership NHS Trust,19/03/24,Landline Telephone Rental / Calls,"Bennion Centre (including Forest Grange Day Unit) (P8, LPT)",VIRGIN MEDIA BUSINESS,853083001/004/0324,8.77
Department of Health,Leicestershire Partnership NHS Trust,19/03/24,Landline Telephone Rental / Calls,"Bradgate Unit (including Glenvale day Unit) (P7, LPT)",VIRGIN MEDIA BUSINESS,853083001/004/0324,6363.23
Department of Health,Leicestershire Partnership NHS Trust,19/03/24,Landline Telephone Rental / Calls,Braunstone Health and Social Care Centre (Part) (PROPCO),VIRGIN MEDIA BUSINESS,853083001/004/0324,1153.40
Department of Health,Leicestershire Partnership NHS Trust,19/03/24,Landline Telephone Rental / Calls,Bridge Park Plaza - First Floor (LPT),VIRGIN MEDIA BUSINESS,853083001/004/0324,2673.54
Department of Health,Leicestershire Partnership NHS Trust,19/03/24,Landline Telephone Rental / Calls,"Coalville Community Hospital (P138, LPT)",VIRGIN MEDIA BUSINESS,853083001/004/0324,85.14
Department of Health,Leicestershire Partnership NHS Trust,19/03/24,Landline Telephone Rental / Calls,"Coalville Health Centre (P121, LPT)",VIRGIN MEDIA BUSINESS,853083001/004/0324,7.74
Department of Health,Leicestershire Partnership NHS Trust,19/03/24,Landline Telephone Rental / Calls,County Hall,VIRGIN MEDIA BUSINESS,853083001/004/0324,1511.96
Department of Health,Leicestershire Partnership NHS Trust,19/03/24,Landline Telephone Rental / Calls,Estates & Facilities Central,VIRGIN MEDIA BUSINESS,853083001/004/0324,4.34
Department of Health,Leicestershire Partnership NHS Trust,19/03/24,Landline Telephone Rental / Calls,"Evington Centre (P6, LPT)",VIRGIN MEDIA BUSINESS,853083001/004/0324,204.06
Department of Health,Leicestershire Partnership NHS Trust,19/03/24,Landline Telephone Rental / Calls,HIS,VIRGIN MEDIA BUSINESS,853083001/004/0324,3080.35
Department of Health,Leicestershire Partnership NHS Trust,19/03/24,Landline Telephone Rental / Calls,"Hinckley and Bosworth Community Hospital (Sunnyside) (P133, LPT)",VIRGIN MEDIA BUSINESS,853083001/004/0324,932.84
Department of Health,Leicestershire Partnership NHS Trust,19/03/24,Landline Telephone Rental / Calls,"Hynca Lodge (P33, LPT)",VIRGIN MEDIA BUSINESS,853083001/004/0324,429.12
Department of Health,Leicestershire Partnership NHS Trust,19/03/24,Landline Telephone Rental / Calls,"Loughborough Hospital (P136, LPT)",VIRGIN MEDIA BUSINESS,853083001/004/0324,3285.47
Department of Health,Leicestershire Partnership NHS Trust,19/03/24,Landline Telephone Rental / Calls,Mawson House (LPT),VIRGIN MEDIA BUSINESS,853083001/004/0324,441.83
Department of Health,Leicestershire Partnership NHS Trust,19/03/24,Landline Telephone Rental / Calls,Merlyn Vaz Centre (CHP),VIRGIN MEDIA BUSINESS,853083001/004/0324,1412.41
Department of Health,Leicestershire Partnership NHS Trust,19/03/24,Landline Telephone Rental / Calls,"Mett Centre (P49, LPT)",VIRGIN MEDIA BUSINESS,853083001/004/0324,103.67
Department of Health,Leicestershire Partnership NHS Trust,19/03/24,Landline Telephone Rental / Calls,New Parks Health Centre (PROPCO),VIRGIN MEDIA BUSINESS,853083001/004/0324,1449.60
Department of Health,Leicestershire Partnership NHS Trust,19/03/24,Landline Telephone Rental / Calls,"OSL House (P54, LPT)",VIRGIN MEDIA BUSINESS,853083001/004/0324,926.16
Department of Health,Leicestershire Partnership NHS Trust,19/03/24,Landline Telephone Rental / Calls,"Orchard Resource Centre (P15, LPT)",VIRGIN MEDIA BUSINESS,853083001/004/0324,567.26
Department of Health,Leicestershire Partnership NHS Trust,19/03/24,Landline Telephone Rental / Calls,Pasley Road Health Centre (PROPCO),VIRGIN MEDIA BUSINESS,853083001/004/0324,172.12
Department of Health,Leicestershire Partnership NHS Trust,19/03/24,Landline Telephone Rental / Calls,"Prince Philip House (P96, LPT)",VIRGIN MEDIA BUSINESS,853083001/004/0324,1114.50
Department of Health,Leicestershire Partnership NHS Trust,19/03/24,Landline Telephone Rental / Calls,Rushey Mead Health Centre (PROPCO),VIRGIN MEDIA BUSINESS,853083001/004/0324,65.76
Department of Health,Leicestershire Partnership NHS Trust,19/03/24,Landline Telephone Rental / Calls,"Springfield Road Health Centre (P92, LPT)",VIRGIN MEDIA BUSINESS,853083001/004/0324,352.56
Department of Health,Leicestershire Partnership NHS Trust,19/03/24,Landline Telephone Rental / Calls,"St Peters Health Center (Part 1st and 2nd floors) (P66, LPT)",VIRGIN MEDIA BUSINESS,853083001/004/0324,1515.61
Department of Health,Leicestershire Partnership NHS Trust,19/03/24,Landline Telephone Rental / Calls,"Swithland House - London Road 352 (P44, LPT)",VIRGIN MEDIA BUSINESS,853083001/004/0324,275.20
Department of Health,Leicestershire Partnership NHS Trust,19/03/24,Landline Telephone Rental / Calls,"The Cedars (P19, LPT)",VIRGIN MEDIA BUSINESS,853083001/004/0324,737.81
Department of Health,Leicestershire Partnership NHS Trust,19/03/24,Landline Telephone Rental / Calls,"The Willows - Cordelia Close (P22, LPT)",VIRGIN MEDIA BUSINESS,853083001/004/0324,46.44
Department of Health,Leicestershire Partnership NHS Trust,19/03/24,Landline Telephone Rental / Calls,"Valentine Centre (P3, LPT)",VIRGIN MEDIA BUSINESS,853083001/004/0324,553.61
Department of Health,Leicestershire Partnership NHS Trust,19/03/24,Landline Telephone Rental / Calls,Warren Park Way 25 (PROPCO),VIRGIN MEDIA BUSINESS,853083001/004/0324,752.95
Department of Health,Leicestershire Partnership NHS Trust,19/03/24,Landline Telephone Rental / Calls,"Westcotes Group -Westcotes House (P78, LPT)",VIRGIN MEDIA BUSINESS,853083001/004/0324,823.76
Department of Health,Leicestershire Partnership NHS Trust,19/03/24,Landline Telephone Rental / Calls,"Winstanley Drive Health Centre (P8, LPT)",VIRGIN MEDIA BUSINESS,853083001/004/0324,46.44
Department of Health,Leicestershire Partnership NHS Trust,20/03/24,Admin & Clerical - Band 5,360 Assurance - Coventry & Warwick,SOUTH WARWICKSHIRE NHSFT,1100017995,43.71
Department of Health,Leicestershire Partnership NHS Trust,20/03/24,Admin & Clerical - Band 6,360 Assurance - Coventry & Warwick,SOUTH WARWICKSHIRE NHSFT,1100017995,22285.75
Department of Health,Leicestershire Partnership NHS Trust,20/03/24,Admin & Clerical - Band 7,360 Assurance - Coventry & Warwick,SOUTH WARWICKSHIRE NHSFT,1100017995,65241.27
Department of Health,Leicestershire Partnership NHS Trust,20/03/24,Non Pay Reserves,360 Assurance - Coventry & Warwick,SOUTH WARWICKSHIRE NHSFT,1100017995,7500.00
Department of Health,Leicestershire Partnership NHS Trust,20/03/24,Senior Manager - Band 8B,360 Assurance - Coventry & Warwick,SOUTH WARWICKSHIRE NHSFT,1100017995,86547.79
Department of Health,Leicestershire Partnership NHS Trust,20/03/24,WIP Project Not in BS - Buildings excl Dwellings,Work in Progress,TILBURY DOUGLAS CONSTRUCTION LTD,24030149,47231.65
Department of Health,Leicestershire Partnership NHS Trust,20/03/24,WIP Project Not in BS - Buildings excl Dwellings,Work in Progress,TILBURY DOUGLAS CONSTRUCTION LTD,24030159,76323.82
Department of Health,Leicestershire Partnership NHS Trust,20/03/24,WIP Project Not in BS - Buildings excl Dwellings,Work in Progress,TILBURY DOUGLAS CONSTRUCTION LTD,24030164,25210.13
Department of Health,Leicestershire Partnership NHS Trust,20/03/24,WIP Project Not in BS - Buildings excl Dwellings,Work in Progress,TILBURY DOUGLAS CONSTRUCTION LTD,24030165,35019.18
Department of Health,Leicestershire Partnership NHS Trust,20/03/24,WIP Project Not in BS - Buildings excl Dwellings,Work in Progress,TILBURY DOUGLAS CONSTRUCTION LTD,24030166,31233.64
Department of Health,Leicestershire Partnership NHS Trust,20/03/24,WIP Project Not in BS - Buildings excl Dwellings,Work in Progress,TILBURY DOUGLAS CONSTRUCTION LTD,24030169,26127.54
Department of Health,Leicestershire Partnership NHS Trust,20/03/24,WIP Project Not in BS - Buildings excl Dwellings,Work in Progress,TILBURY DOUGLAS CONSTRUCTION LTD,24030175,40849.78
Department of Health,Leicestershire Partnership NHS Trust,20/03/24,WIP Project Not in BS - Buildings excl Dwellings,Work in Progress,TILBURY DOUGLAS CONSTRUCTION LTD,24030172,55476.90
Department of Health,Leicestershire Partnership NHS Trust,21/03/24,Furniture & Fittings,SDF Central Access Point Enhancement 23/24,PINEAPPLE CONTRACTS,SI/91745,29269.20
Department of Health,Leicestershire Partnership NHS Trust,21/03/24,WIP Project Not in BS - Information Technology,Work in Progress,SOFTCAT PLC,INVUK1230812,50862.00
Department of Health,Leicestershire Partnership NHS Trust,21/03/24,WIP Project Not in BS - Information Technology,Work in Progress,SOFTCAT PLC,INVUK1230816,99648.00
Department of Health,Leicestershire Partnership NHS Trust,21/03/24,WIP Project Not in BS - Information Technology,Work in Progress,SOFTCAT PLC,INVUK1233426,99648.00
Department of Health,Leicestershire Partnership NHS Trust,21/03/24,WIP Project Not in BS - Information Technology,Work in Progress,SOFTCAT PLC,INVUK1230848,99648.00
Department of Health,Leicestershire Partnership NHS Trust,21/03/24,NURSE - BAND 2 - AGENCY,Beechwood Ward,HCL NURSING,HNSI0001600,6990.63
Department of Health,Leicestershire Partnership NHS Trust,21/03/24,NURSE - BAND 5 - AGENCY,Beechwood Ward,HCL NURSING,HNSI0001600,1079.38
Department of Health,Leicestershire Partnership NHS Trust,21/03/24,NURSE - BAND 5 - AGENCY,City Planned Care - East,HCL NURSING,HNSI0001600,34282.73
Department of Health,Leicestershire Partnership NHS Trust,21/03/24,NURSE - BAND 5 - AGENCY,City Planned Care - West,HCL NURSING,HNSI0001600,20699.85
Department of Health,Leicestershire Partnership NHS Trust,21/03/24,NURSE - BAND 2 - AGENCY,Clarendon Ward,HCL NURSING,HNSI0001600,2032.43
Department of Health,Leicestershire Partnership NHS Trust,21/03/24,NURSE - BAND 5 - AGENCY,Clarendon Ward,HCL NURSING,HNSI0001600,2957.51
Department of Health,Leicestershire Partnership NHS Trust,21/03/24,NURSE - BAND 2 - AGENCY,Coalville Snibston Ward,HCL NURSING,HNSI0001600,8876.60
Department of Health,Leicestershire Partnership NHS Trust,21/03/24,NURSE - BAND 5 - AGENCY,Coalville Snibston Ward,HCL NURSING,HNSI0001600,2863.48
Department of Health,Leicestershire Partnership NHS Trust,21/03/24,NURSE - BAND 2 - AGENCY,Coalville Ward 2,HCL NURSING,HNSI0001600,5321.41
Department of Health,Leicestershire Partnership NHS Trust,21/03/24,NURSE - BAND 5 - AGENCY,Coalville Ward 2,HCL NURSING,HNSI0001600,571.85
Department of Health,Leicestershire Partnership NHS Trust,21/03/24,NURSE - BAND 2 - AGENCY,Coalville Ward 4,HCL NURSING,HNSI0001600,6748.30
Department of Health,Leicestershire Partnership NHS Trust,21/03/24,NURSE - BAND 5 - AGENCY,Coalville Ward 4,HCL NURSING,HNSI0001600,11691.53
Department of Health,Leicestershire Partnership NHS Trust,21/03/24,NURSE - BAND 2 - AGENCY,Dalgliesh Ward,HCL NURSING,HNSI0001600,11505.10
Department of Health,Leicestershire Partnership NHS Trust,21/03/24,NURSE - BAND 5 - AGENCY,Dalgliesh Ward,HCL NURSING,HNSI0001600,6124.50
Department of Health,Leicestershire Partnership NHS Trust,21/03/24,NURSE - BAND 5 - AGENCY,East Planned Care - Blaby/Lutterworth,HCL NURSING,HNSI0001600,2271.01
Department of Health,Leicestershire Partnership NHS Trust,21/03/24,NURSE - BAND 5 - AGENCY,"East Planned Care - Melton,Syston,Rutland",HCL NURSING,HNSI0001600,4895.77
Department of Health,Leicestershire Partnership NHS Trust,21/03/24,NURSE - BAND 5 - AGENCY,"East Planned Care - Oadby,Wigston & Harborough",HCL NURSING,HNSI0001600,2141.74
Department of Health,Leicestershire Partnership NHS Trust,21/03/24,NURSE - BAND 2 - AGENCY,H&B Comm Hosp East Ward,HCL NURSING,HNSI0001600,14451.76
Department of Health,Leicestershire Partnership NHS Trust,21/03/24,NURSE - BAND 5 - AGENCY,H&B Comm Hosp East Ward,HCL NURSING,HNSI0001600,9976.15
Department of Health,Leicestershire Partnership NHS Trust,21/03/24,NURSE - BAND 2 - AGENCY,H&B Comm Hosp North Ward,HCL NURSING,HNSI0001600,3604.29
Department of Health,Leicestershire Partnership NHS Trust,21/03/24,NURSE - BAND 5 - AGENCY,H&B Comm Hosp North Ward,HCL NURSING,HNSI0001600,1122.04
Department of Health,Leicestershire Partnership NHS Trust,21/03/24,NURSE - BAND 2 - AGENCY,Lough Swithland Ward,HCL NURSING,HNSI0001600,3644.42
Department of Health,Leicestershire Partnership NHS Trust,21/03/24,NURSE - BAND 5 - AGENCY,Lough Swithland Ward,HCL NURSING,HNSI0001600,2936.91
Department of Health,Leicestershire Partnership NHS Trust,21/03/24,NURSE - BAND 2 - AGENCY,Loughborough Charnwood Ward,HCL NURSING,HNSI0001600,7565.04
Department of Health,Leicestershire Partnership NHS Trust,21/03/24,NURSE - BAND 5 - AGENCY,Loughborough Charnwood Ward,HCL NURSING,HNSI0001600,11701.05
Department of Health,Leicestershire Partnership NHS Trust,21/03/24,NURSE - BAND 2 - AGENCY,Rutland Ward Nursing,HCL NURSING,HNSI0001600,1970.62
Department of Health,Leicestershire Partnership NHS Trust,21/03/24,NURSE - BAND 5 - AGENCY,Rutland Ward Nursing,HCL NURSING,HNSI0001600,1285.13
Department of Health,Leicestershire Partnership NHS Trust,21/03/24,NURSE - BAND 2 - AGENCY,St Lukes Stroke Ward,HCL NURSING,HNSI0001600,5996.82
Department of Health,Leicestershire Partnership NHS Trust,21/03/24,NURSE - BAND 5 - AGENCY,St Lukes Stroke Ward,HCL NURSING,HNSI0001600,1856.98
Department of Health,Leicestershire Partnership NHS Trust,21/03/24,NURSE - BAND 2 - AGENCY,St Lukes Ward 3,HCL NURSING,HNSI0001600,2820.58
Department of Health,Leicestershire Partnership NHS Trust,21/03/24,NURSE - BAND 5 - AGENCY,St Lukes Ward 3,HCL NURSING,HNSI0001600,1567.72
Department of Health,Leicestershire Partnership NHS Trust,21/03/24,NURSE - BAND 5 - AGENCY,West Planned Care  - Charnwood Hub,HCL NURSING,HNSI0001600,6793.03
Department of Health,Leicestershire Partnership NHS Trust,21/03/24,NURSE - BAND 5 - AGENCY,West Planned Care  - Hinckley Hub,HCL NURSING,HNSI0001600,2631.01
Department of Health,Leicestershire Partnership NHS Trust,22/03/24,Nurse - Band 6 -Agency,CAMHS Waiting List Monies,HCL WORKFORCE SOLUTIONS,HWSI0002150,12252.52
Department of Health,Leicestershire Partnership NHS Trust,22/03/24,Nurse - Band 7 - Agency,City West CMHT MHSOP,HCL WORKFORCE SOLUTIONS,HWSI0002150,1368.75
Department of Health,Leicestershire Partnership NHS Trust,22/03/24,Nurse - Band 6 -Agency,Crisis Response and Home Treatment,HCL WORKFORCE SOLUTIONS,HWSI0002150,9877.96
Department of Health,Leicestershire Partnership NHS Trust,22/03/24,Nurse - Band 6 -Agency,AMH - Central Access Point,HCL WORKFORCE SOLUTIONS,HWSI0002149,8436.18
Department of Health,Leicestershire Partnership NHS Trust,22/03/24,Nurse - Band 6 -Agency,Adult City Central CMHT - St Peters,HCL WORKFORCE SOLUTIONS,HWSI0002149,2959.09
Department of Health,Leicestershire Partnership NHS Trust,22/03/24,Nurse - Band 6 -Agency,Adult City East CMHT,HCL WORKFORCE SOLUTIONS,HWSI0002149,1387.89
Department of Health,Leicestershire Partnership NHS Trust,22/03/24,Nurse - Band 6 -Agency,Adult County South Leicestershire CMHT,HCL WORKFORCE SOLUTIONS,HWSI0002149,2444.87
Department of Health,Leicestershire Partnership NHS Trust,22/03/24,Nurse - Band 6 -Agency,City West CMHT MHSOP,HCL WORKFORCE SOLUTIONS,HWSI0002149,2775.77
Department of Health,Leicestershire Partnership NHS Trust,22/03/24,Nurse - Band 6 -Agency,Crisis Resolution,HCL WORKFORCE SOLUTIONS,HWSI0002149,7004.00
Department of Health,Leicestershire Partnership NHS Trust,22/03/24,Nurse - Band 6 -Agency,Melton & Rutland CMHT MHSOP,HCL WORKFORCE SOLUTIONS,HWSI0002149,1494.67
Department of Health,Leicestershire Partnership NHS Trust,22/03/24,Nurse - Band 6 -Agency,Mental Health Liaison Team,HCL WORKFORCE SOLUTIONS,HWSI0002149,1959.53
Department of Health,Leicestershire Partnership NHS Trust,22/03/24,Nurse - Band 6 -Agency,AMH - Central Access Point,HCL NURSING,HNSI0001599,4366.53
Department of Health,Leicestershire Partnership NHS Trust,22/03/24,Nurse - Band 6 -Agency,Adult City Central CMHT - St Peters,HCL NURSING,HNSI0001599,1092.21
Department of Health,Leicestershire Partnership NHS Trust,22/03/24,Nurse - Band 6 -Agency,Adult City East CMHT,HCL NURSING,HNSI0001599,1391.88
Department of Health,Leicestershire Partnership NHS Trust,22/03/24,NURSE - BAND 2 - AGENCY,Agnes Unit,HCL NURSING,HNSI0001599,7107.68
Department of Health,Leicestershire Partnership NHS Trust,22/03/24,NURSE - BAND 5 - AGENCY,Agnes Unit,HCL NURSING,HNSI0001599,22914.79
Department of Health,Leicestershire Partnership NHS Trust,22/03/24,NURSE - BAND 2 - AGENCY,Ashby Ward (Bradgate Unit),HCL NURSING,HNSI0001599,226.60
Department of Health,Leicestershire Partnership NHS Trust,22/03/24,NURSE - BAND 5 - AGENCY,Ashby Ward (Bradgate Unit),HCL NURSING,HNSI0001599,5488.70
Department of Health,Leicestershire Partnership NHS Trust,22/03/24,NURSE - BAND 2 - AGENCY,Aston Ward Bradgate Unit (Prev Welford),HCL NURSING,HNSI0001599,303.11
Department of Health,Leicestershire Partnership NHS Trust,22/03/24,NURSE - BAND 5 - AGENCY,Aston Ward Bradgate Unit (Prev Welford),HCL NURSING,HNSI0001599,493.45
Department of Health,Leicestershire Partnership NHS Trust,22/03/24,NURSE - BAND 2 - AGENCY,Beaumont Ward - Bradgate Unit,HCL NURSING,HNSI0001599,501.62
Department of Health,Leicestershire Partnership NHS Trust,22/03/24,NURSE - BAND 5 - AGENCY,Beaumont Ward - Bradgate Unit,HCL NURSING,HNSI0001599,5489.36
Department of Health,Leicestershire Partnership NHS Trust,22/03/24,NURSE - BAND 2 - AGENCY,Belvoir Psychiatric Intensive Care Unit,HCL NURSING,HNSI0001599,411.68
Department of Health,Leicestershire Partnership NHS Trust,22/03/24,NURSE - BAND 5 - AGENCY,Belvoir Psychiatric Intensive Care Unit,HCL NURSING,HNSI0001599,6276.47
Department of Health,Leicestershire Partnership NHS Trust,22/03/24,NURSE - BAND 2 - AGENCY,Bosworth Ward - Bradgate Unit,HCL NURSING,HNSI0001599,481.33
Department of Health,Leicestershire Partnership NHS Trust,22/03/24,NURSE - BAND 5 - AGENCY,Bosworth Ward - Bradgate Unit,HCL NURSING,HNSI0001599,1749.89
Department of Health,Leicestershire Partnership NHS Trust,22/03/24,NURSE - BAND 5 - AGENCY,Cedar (Willows),HCL NURSING,HNSI0001599,1424.38
Department of Health,Leicestershire Partnership NHS Trust,22/03/24,Nurse - Band 6 -Agency,City East CMHT MHSOP,HCL NURSING,HNSI0001599,855.97
Department of Health,Leicestershire Partnership NHS Trust,22/03/24,NURSE - BAND 2 - AGENCY,Coleman Ward,HCL NURSING,HNSI0001599,1451.56
Department of Health,Leicestershire Partnership NHS Trust,22/03/24,NURSE - BAND 5 - AGENCY,Coleman Ward,HCL NURSING,HNSI0001599,6259.28
Department of Health,Leicestershire Partnership NHS Trust,22/03/24,Nurse - Band 6 -Agency,Crisis Resolution,HCL NURSING,HNSI0001599,915.73
Department of Health,Leicestershire Partnership NHS Trust,22/03/24,NURSE - BAND 5 - AGENCY,Griffin Ward (HPC),HCL NURSING,HNSI0001599,3164.14
Department of Health,Leicestershire Partnership NHS Trust,22/03/24,NURSE - BAND 2 - AGENCY,Gwendolen Ward,HCL NURSING,HNSI0001599,449.84
Department of Health,Leicestershire Partnership NHS Trust,22/03/24,NURSE - BAND 5 - AGENCY,Gwendolen Ward,HCL NURSING,HNSI0001599,2043.25
Department of Health,Leicestershire Partnership NHS Trust,22/03/24,NURSE - BAND 5 - AGENCY,Heather Ward,HCL NURSING,HNSI0001599,1885.40
Department of Health,Leicestershire Partnership NHS Trust,22/03/24,NURSE - BAND 2 - AGENCY,Kirby Ward,HCL NURSING,HNSI0001599,203.06
Department of Health,Leicestershire Partnership NHS Trust,22/03/24,NURSE - BAND 5 - AGENCY,Kirby Ward,HCL NURSING,HNSI0001599,1307.01
Department of Health,Leicestershire Partnership NHS Trust,22/03/24,NURSE - BAND 5 - AGENCY,Maple Ward,HCL NURSING,HNSI0001599,493.45
Department of Health,Leicestershire Partnership NHS Trust,22/03/24,NURSE - BAND 2 - AGENCY,Mill Lodge,HCL NURSING,HNSI0001599,597.34
Department of Health,Leicestershire Partnership NHS Trust,22/03/24,NURSE - BAND 5 - AGENCY,Mill Lodge,HCL NURSING,HNSI0001599,1383.40
Department of Health,Leicestershire Partnership NHS Trust,22/03/24,NURSE - BAND 2 - AGENCY,Phoenix Ward (HPC),HCL NURSING,HNSI0001599,1296.58
Department of Health,Leicestershire Partnership NHS Trust,22/03/24,NURSE - BAND 5 - AGENCY,Phoenix Ward (HPC),HCL NURSING,HNSI0001599,2394.17
Department of Health,Leicestershire Partnership NHS Trust,22/03/24,NURSE - BAND 2 - AGENCY,Place Of Safety Assessment Unit,HCL NURSING,HNSI0001599,207.89
Department of Health,Leicestershire Partnership NHS Trust,22/03/24,NURSE - BAND 5 - AGENCY,Place Of Safety Assessment Unit,HCL NURSING,HNSI0001599,3749.36
Department of Health,Leicestershire Partnership NHS Trust,22/03/24,NURSE - BAND 5 - AGENCY,Sycamore (Willows),HCL NURSING,HNSI0001599,986.91
Department of Health,Leicestershire Partnership NHS Trust,22/03/24,NURSE - BAND 5 - AGENCY,Thornton Ward - Bradgate Unit,HCL NURSING,HNSI0001599,1424.38
Department of Health,Leicestershire Partnership NHS Trust,22/03/24,NURSE - BAND 2 - AGENCY,Beechwood Ward,HCL NURSING,HNSI0001590,3291.75
Department of Health,Leicestershire Partnership NHS Trust,22/03/24,NURSE - BAND 5 - AGENCY,Beechwood Ward,HCL NURSING,HNSI0001590,1376.29
Department of Health,Leicestershire Partnership NHS Trust,22/03/24,NURSE - BAND 5 - AGENCY,City Planned Care - East,HCL NURSING,HNSI0001590,36731.24
Department of Health,Leicestershire Partnership NHS Trust,22/03/24,NURSE - BAND 5 - AGENCY,City Planned Care - West,HCL NURSING,HNSI0001590,23861.48
Department of Health,Leicestershire Partnership NHS Trust,22/03/24,NURSE - BAND 2 - AGENCY,Clarendon Ward,HCL NURSING,HNSI0001590,2435.44
Department of Health,Leicestershire Partnership NHS Trust,22/03/24,NURSE - BAND 5 - AGENCY,Clarendon Ward,HCL NURSING,HNSI0001590,3570.50
Department of Health,Leicestershire Partnership NHS Trust,22/03/24,NURSE - BAND 2 - AGENCY,Coalville Snibston Ward,HCL NURSING,HNSI0001590,8087.63
Department of Health,Leicestershire Partnership NHS Trust,22/03/24,NURSE - BAND 5 - AGENCY,Coalville Snibston Ward,HCL NURSING,HNSI0001590,2975.13
Department of Health,Leicestershire Partnership NHS Trust,22/03/24,NURSE - BAND 2 - AGENCY,Coalville Ward 2,HCL NURSING,HNSI0001590,6128.25
Department of Health,Leicestershire Partnership NHS Trust,22/03/24,NURSE - BAND 5 - AGENCY,Coalville Ward 2,HCL NURSING,HNSI0001590,2014.58
Department of Health,Leicestershire Partnership NHS Trust,22/03/24,NURSE - BAND 2 - AGENCY,Coalville Ward 4,HCL NURSING,HNSI0001590,10040.58
Department of Health,Leicestershire Partnership NHS Trust,22/03/24,NURSE - BAND 5 - AGENCY,Coalville Ward 4,HCL NURSING,HNSI0001590,7135.73
Department of Health,Leicestershire Partnership NHS Trust,22/03/24,NURSE - BAND 2 - AGENCY,Dalgliesh Ward,HCL NURSING,HNSI0001590,9279.17
Department of Health,Leicestershire Partnership NHS Trust,22/03/24,NURSE - BAND 5 - AGENCY,Dalgliesh Ward,HCL NURSING,HNSI0001590,4202.73
Department of Health,Leicestershire Partnership NHS Trust,22/03/24,NURSE - BAND 5 - AGENCY,East Planned Care - Blaby/Lutterworth,HCL NURSING,HNSI0001590,3288.19
Department of Health,Leicestershire Partnership NHS Trust,22/03/24,NURSE - BAND 5 - AGENCY,"East Planned Care - Melton,Syston,Rutland",HCL NURSING,HNSI0001590,5713.96
Department of Health,Leicestershire Partnership NHS Trust,22/03/24,NURSE - BAND 5 - AGENCY,"East Planned Care - Oadby,Wigston & Harborough",HCL NURSING,HNSI0001590,4455.07
Department of Health,Leicestershire Partnership NHS Trust,22/03/24,NURSE - BAND 2 - AGENCY,H&B Comm Hosp East Ward,HCL NURSING,HNSI0001590,12921.20
Department of Health,Leicestershire Partnership NHS Trust,22/03/24,NURSE - BAND 5 - AGENCY,H&B Comm Hosp East Ward,HCL NURSING,HNSI0001590,8148.37
Department of Health,Leicestershire Partnership NHS Trust,22/03/24,NURSE - BAND 2 - AGENCY,H&B Comm Hosp North Ward,HCL NURSING,HNSI0001590,2672.64
Department of Health,Leicestershire Partnership NHS Trust,22/03/24,NURSE - BAND 5 - AGENCY,H&B Comm Hosp North Ward,HCL NURSING,HNSI0001590,1114.64
Department of Health,Leicestershire Partnership NHS Trust,22/03/24,NURSE - BAND 2 - AGENCY,Lough Swithland Ward,HCL NURSING,HNSI0001590,948.38
Department of Health,Leicestershire Partnership NHS Trust,22/03/24,NURSE - BAND 5 - AGENCY,Lough Swithland Ward,HCL NURSING,HNSI0001590,1551.55
Department of Health,Leicestershire Partnership NHS Trust,22/03/24,NURSE - BAND 2 - AGENCY,Loughborough Charnwood Ward,HCL NURSING,HNSI0001590,9904.20
Department of Health,Leicestershire Partnership NHS Trust,22/03/24,NURSE - BAND 5 - AGENCY,Loughborough Charnwood Ward,HCL NURSING,HNSI0001590,12840.85
Department of Health,Leicestershire Partnership NHS Trust,22/03/24,NURSE - BAND 2 - AGENCY,Rutland Ward Nursing,HCL NURSING,HNSI0001590,3802.97
Department of Health,Leicestershire Partnership NHS Trust,22/03/24,NURSE - BAND 5 - AGENCY,Rutland Ward Nursing,HCL NURSING,HNSI0001590,4297.63
Department of Health,Leicestershire Partnership NHS Trust,22/03/24,NURSE - BAND 2 - AGENCY,St Lukes Stroke Ward,HCL NURSING,HNSI0001590,5437.61
Department of Health,Leicestershire Partnership NHS Trust,22/03/24,NURSE - BAND 5 - AGENCY,St Lukes Stroke Ward,HCL NURSING,HNSI0001590,3851.45
Department of Health,Leicestershire Partnership NHS Trust,22/03/24,NURSE - BAND 2 - AGENCY,St Lukes Ward 3,HCL NURSING,HNSI0001590,2490.41
Department of Health,Leicestershire Partnership NHS Trust,22/03/24,NURSE - BAND 5 - AGENCY,St Lukes Ward 3,HCL NURSING,HNSI0001590,889.38
Department of Health,Leicestershire Partnership NHS Trust,22/03/24,NURSE - BAND 5 - AGENCY,West Planned Care  - Charnwood Hub,HCL NURSING,HNSI0001590,6888.16
Department of Health,Leicestershire Partnership NHS Trust,22/03/24,NURSE - BAND 5 - AGENCY,West Planned Care  - Hinckley Hub,HCL NURSING,HNSI0001590,4609.71
Department of Health,Leicestershire Partnership NHS Trust,22/03/24,NURSE - BAND 2 - AGENCY,Beechwood Ward,HCL NURSING,HNSI0001595,4288.84
Department of Health,Leicestershire Partnership NHS Trust,22/03/24,NURSE - BAND 5 - AGENCY,Beechwood Ward,HCL NURSING,HNSI0001595,1507.73
Department of Health,Leicestershire Partnership NHS Trust,22/03/24,NURSE - BAND 5 - AGENCY,City Planned Care - East,HCL NURSING,HNSI0001595,29156.27
Department of Health,Leicestershire Partnership NHS Trust,22/03/24,NURSE - BAND 5 - AGENCY,City Planned Care - West,HCL NURSING,HNSI0001595,22904.07
Department of Health,Leicestershire Partnership NHS Trust,22/03/24,NURSE - BAND 2 - AGENCY,Clarendon Ward,HCL NURSING,HNSI0001595,769.30
Department of Health,Leicestershire Partnership NHS Trust,22/03/24,NURSE - BAND 5 - AGENCY,Clarendon Ward,HCL NURSING,HNSI0001595,3333.47
Department of Health,Leicestershire Partnership NHS Trust,22/03/24,NURSE - BAND 2 - AGENCY,Coalville Snibston Ward,HCL NURSING,HNSI0001595,6944.90
Department of Health,Leicestershire Partnership NHS Trust,22/03/24,NURSE - BAND 5 - AGENCY,Coalville Snibston Ward,HCL NURSING,HNSI0001595,2974.98
Department of Health,Leicestershire Partnership NHS Trust,22/03/24,NURSE - BAND 2 - AGENCY,Coalville Ward 2,HCL NURSING,HNSI0001595,5102.75
Department of Health,Leicestershire Partnership NHS Trust,22/03/24,NURSE - BAND 5 - AGENCY,Coalville Ward 2,HCL NURSING,HNSI0001595,900.90
Department of Health,Leicestershire Partnership NHS Trust,22/03/24,NURSE - BAND 2 - AGENCY,Coalville Ward 4,HCL NURSING,HNSI0001595,7840.04
Department of Health,Leicestershire Partnership NHS Trust,22/03/24,NURSE - BAND 5 - AGENCY,Coalville Ward 4,HCL NURSING,HNSI0001595,8085.83
Department of Health,Leicestershire Partnership NHS Trust,22/03/24,NURSE - BAND 2 - AGENCY,Dalgliesh Ward,HCL NURSING,HNSI0001595,10152.79
Department of Health,Leicestershire Partnership NHS Trust,22/03/24,NURSE - BAND 5 - AGENCY,Dalgliesh Ward,HCL NURSING,HNSI0001595,2149.71
Department of Health,Leicestershire Partnership NHS Trust,22/03/24,NURSE - BAND 5 - AGENCY,East Planned Care - Blaby/Lutterworth,HCL NURSING,HNSI0001595,6207.91
Department of Health,Leicestershire Partnership NHS Trust,22/03/24,NURSE - BAND 5 - AGENCY,"East Planned Care - Melton,Syston,Rutland",HCL NURSING,HNSI0001595,2062.76
Department of Health,Leicestershire Partnership NHS Trust,22/03/24,NURSE - BAND 5 - AGENCY,"East Planned Care - Oadby,Wigston & Harborough",HCL NURSING,HNSI0001595,5706.24
Department of Health,Leicestershire Partnership NHS Trust,22/03/24,NURSE - BAND 2 - AGENCY,H&B Comm Hosp East Ward,HCL NURSING,HNSI0001595,10932.00
Department of Health,Leicestershire Partnership NHS Trust,22/03/24,NURSE - BAND 5 - AGENCY,H&B Comm Hosp East Ward,HCL NURSING,HNSI0001595,9305.19
Department of Health,Leicestershire Partnership NHS Trust,22/03/24,NURSE - BAND 2 - AGENCY,H&B Comm Hosp North Ward,HCL NURSING,HNSI0001595,4437.93
Department of Health,Leicestershire Partnership NHS Trust,22/03/24,NURSE - BAND 5 - AGENCY,H&B Comm Hosp North Ward,HCL NURSING,HNSI0001595,2240.15
Department of Health,Leicestershire Partnership NHS Trust,22/03/24,NURSE - BAND 2 - AGENCY,Lough Swithland Ward,HCL NURSING,HNSI0001595,2785.78
Department of Health,Leicestershire Partnership NHS Trust,22/03/24,NURSE - BAND 5 - AGENCY,Lough Swithland Ward,HCL NURSING,HNSI0001595,2595.54
Department of Health,Leicestershire Partnership NHS Trust,22/03/24,NURSE - BAND 2 - AGENCY,Loughborough Charnwood Ward,HCL NURSING,HNSI0001595,7934.70
Department of Health,Leicestershire Partnership NHS Trust,22/03/24,NURSE - BAND 5 - AGENCY,Loughborough Charnwood Ward,HCL NURSING,HNSI0001595,11243.49
Department of Health,Leicestershire Partnership NHS Trust,22/03/24,NURSE - BAND 2 - AGENCY,Rutland Ward Nursing,HCL NURSING,HNSI0001595,2671.53
Department of Health,Leicestershire Partnership NHS Trust,22/03/24,NURSE - BAND 5 - AGENCY,Rutland Ward Nursing,HCL NURSING,HNSI0001595,2605.12
Department of Health,Leicestershire Partnership NHS Trust,22/03/24,NURSE - BAND 2 - AGENCY,St Lukes Stroke Ward,HCL NURSING,HNSI0001595,3921.28
Department of Health,Leicestershire Partnership NHS Trust,22/03/24,NURSE - BAND 5 - AGENCY,St Lukes Stroke Ward,HCL NURSING,HNSI0001595,2930.18
Department of Health,Leicestershire Partnership NHS Trust,22/03/24,NURSE - BAND 2 - AGENCY,St Lukes Ward 3,HCL NURSING,HNSI0001595,2810.40
Department of Health,Leicestershire Partnership NHS Trust,22/03/24,NURSE - BAND 5 - AGENCY,St Lukes Ward 3,HCL NURSING,HNSI0001595,758.99
Department of Health,Leicestershire Partnership NHS Trust,22/03/24,NURSE - BAND 5 - AGENCY,West Planned Care  - Charnwood Hub,HCL NURSING,HNSI0001595,6979.89
Department of Health,Leicestershire Partnership NHS Trust,22/03/24,NURSE - BAND 5 - AGENCY,West Planned Care  - Hinckley Hub,HCL NURSING,HNSI0001595,5029.86
Department of Health,Leicestershire Partnership NHS Trust,22/03/24,WIP Project Not in BS - Buildings excl Dwellings,Work in Progress,O.HEAP & SON (DERBY) LTD,SINB47905,83036.17
Department of Health,Leicestershire Partnership NHS Trust,25/03/24,WIP Project Not in BS - Buildings excl Dwellings,Work in Progress,TILBURY DOUGLAS CONSTRUCTION LTD,24030277,969774.42
Department of Health,Leicestershire Partnership NHS Trust,25/03/24,Crs_NHS_LT1y -Resus Inventory Supplied.,Balance Sheet Collection,SUPPLY CHAIN CO LTD,1124345245,41697.99
Department of Health,Leicestershire Partnership NHS Trust,26/03/24,WIP Project Not in BS - Buildings excl Dwellings,Work in Progress,TILBURY DOUGLAS CONSTRUCTION LTD,24030313,70503.08
Department of Health,Leicestershire Partnership NHS Trust,26/03/24,WIP Project Not in BS - Buildings excl Dwellings,Work in Progress,TILBURY DOUGLAS CONSTRUCTION LTD,24030317,51194.06
Department of Health,Leicestershire Partnership NHS Trust,26/03/24,WIP Project Not in BS - Buildings excl Dwellings,Work in Progress,TILBURY DOUGLAS CONSTRUCTION LTD,24030318,82531.15
Department of Health,Leicestershire Partnership NHS Trust,26/03/24,WIP Project Not in BS - Buildings excl Dwellings,Work in Progress,TILBURY DOUGLAS CONSTRUCTION LTD,24030319,32484.86
Department of Health,Leicestershire Partnership NHS Trust,26/03/24,WIP Project Not in BS - Buildings excl Dwellings,Work in Progress,TILBURY DOUGLAS CONSTRUCTION LTD,24030322,43014.35
Department of Health,Leicestershire Partnership NHS Trust,26/03/24,WIP Project Not in BS - Buildings excl Dwellings,Work in Progress,TILBURY DOUGLAS CONSTRUCTION LTD,24030325,38324.24
Department of Health,Leicestershire Partnership NHS Trust,26/03/24,WIP Project Not in BS - Buildings excl Dwellings,Work in Progress,TILBURY DOUGLAS CONSTRUCTION LTD,24030334,29124.56
Department of Health,Leicestershire Partnership NHS Trust,26/03/24,WIP Project Not in BS - Buildings excl Dwellings,Work in Progress,TILBURY DOUGLAS CONSTRUCTION LTD,24030336,66652.37
Department of Health,Leicestershire Partnership NHS Trust,26/03/24,WIP Project Not in BS - Buildings excl Dwellings,Work in Progress,TILBURY DOUGLAS CONSTRUCTION LTD,24030337,27732.90
Department of Health,Leicestershire Partnership NHS Trust,26/03/24,WIP Project Not in BS - Buildings excl Dwellings,Work in Progress,TILBURY DOUGLAS CONSTRUCTION LTD,24030338,87701.04
Department of Health,Leicestershire Partnership NHS Trust,26/03/24,WIP Project Not in BS - Buildings excl Dwellings,Work in Progress,TILBURY DOUGLAS CONSTRUCTION LTD,24030339,120942.95
Department of Health,Leicestershire Partnership NHS Trust,26/03/24,WIP Project Not in BS - Buildings excl Dwellings,Work in Progress,TILBURY DOUGLAS CONSTRUCTION LTD,24030341,26436.07
Department of Health,Leicestershire Partnership NHS Trust,26/03/24,External Consultancy Fees,Leicester City CCG IT Recharge,NOTT UNI HOSP NHS TRUST (RX1),2000135153,106299.00
Department of Health,Leicestershire Partnership NHS Trust,26/03/24,Prep_ LT1y -Prepayments Lease Cars,Balance Sheet Collection,GMP DRIVECARE LIMITED,13704,15351.92
Department of Health,Leicestershire Partnership NHS Trust,26/03/24,Trade_Drs_LT1y -Lease Cars Invoicing Contrl Ac.,Balance Sheet Collection,GMP DRIVECARE LIMITED,13704,15.00
Department of Health,Leicestershire Partnership NHS Trust,26/03/24,Leased / Hired Vehicles,School Age Immunisation and Vaccinations,GMP DRIVECARE LIMITED,13704,7141.95
Department of Health,Leicestershire Partnership NHS Trust,26/03/24,WIP Project Not in BS - Buildings excl Dwellings,Work in Progress,TILBURY DOUGLAS CONSTRUCTION LTD,24030326,44806.84
Department of Health,Leicestershire Partnership NHS Trust,27/03/24,Admin & Clerical - Band 4,Business Development,NORTHAMPTONSHIRE HC NHS FT (RP1),5155379,1290.76
Department of Health,Leicestershire Partnership NHS Trust,27/03/24,DIRECTOR,Business Development,NORTHAMPTONSHIRE HC NHS FT (RP1),5155379,5668.49
Department of Health,Leicestershire Partnership NHS Trust,27/03/24,Admin & Clerical - Band 5,Chief Executives Office,NORTHAMPTONSHIRE HC NHS FT (RP1),5155379,1572.74
Department of Health,Leicestershire Partnership NHS Trust,27/03/24,Admin & Clerical - Band 6,Chief Executives Office,NORTHAMPTONSHIRE HC NHS FT (RP1),5155379,1585.22
Department of Health,Leicestershire Partnership NHS Trust,27/03/24,CHIEF EXECUTIVE'S REMUNERATION,Chief Executives Office,NORTHAMPTONSHIRE HC NHS FT (RP1),5155379,13095.46
Department of Health,Leicestershire Partnership NHS Trust,27/03/24,DIRECTOR,Chief Executives Office,NORTHAMPTONSHIRE HC NHS FT (RP1),5155379,13795.59
Department of Health,Leicestershire Partnership NHS Trust,27/03/24,Senior Manager - Band 8A,Chief Nurse,NORTHAMPTONSHIRE HC NHS FT (RP1),5155379,5299.12
Department of Health,Leicestershire Partnership NHS Trust,27/03/24,Admin & Clerical - Band 5,Corporate Governance,NORTHAMPTONSHIRE HC NHS FT (RP1),5155379,2744.40
Department of Health,Leicestershire Partnership NHS Trust,27/03/24,Senior Manager - Band 8C,Director of Finance,NORTHAMPTONSHIRE HC NHS FT (RP1),5155379,3873.59
Department of Health,Leicestershire Partnership NHS Trust,27/03/24,Admin & Clerical - Band 5,HIS Management Team,NORTHAMPTONSHIRE HC NHS FT (RP1),5155379,1171.89
Department of Health,Leicestershire Partnership NHS Trust,27/03/24,Senior Manager - Band 8D,HIS Management Team,NORTHAMPTONSHIRE HC NHS FT (RP1),5155379,6048.31
Department of Health,Leicestershire Partnership NHS Trust,27/03/24,CHAIRMAN'S REMUNERATION,Non-Execs,NORTHAMPTONSHIRE HC NHS FT (RP1),5155379,2786.61
Department of Health,Leicestershire Partnership NHS Trust,27/03/24,Services / Recharges from Other NHS Bodies,AED Step up Service,NORTHAMPTONSHIRE HC NHS FT (RP1),5155380,35370.00
Department of Health,Leicestershire Partnership NHS Trust,27/03/24,Medical & Surgical Equipment : Disposable,Inpatient Ward Management,MEDSTROM HEALTHCARE,161586,48470.40
Department of Health,Leicestershire Partnership NHS Trust,27/03/24,Admin & Clerical - Agency,360 Assurance - Internal Audit,SOUTH WARWICKSHIRE NHSFT,1100018315,220358.62
Department of Health,Leicestershire Partnership NHS Trust,28/03/24,Systems Development and Hosting,LLR Shared Care Record Programme,SYNANETICS LTD,INV-00529,52650.00
Department of Health,Leicestershire Partnership NHS Trust,28/03/24,Systems Development and Hosting,LLR Shared Care Record Programme,SYNANETICS LTD,INV-00527,50400.00
Department of Health,Leicestershire Partnership NHS Trust,28/03/24,Systems Development and Hosting,LLR Shared Care Record Programme,SYNANETICS LTD,INV-00530,40950.00
Department of Health,Leicestershire Partnership NHS Trust,28/03/24,Furniture & Fittings,Inpatient Ward Management,THE SENATOR GROUP,T00069583,96543.60
Department of Health,Leicestershire Partnership NHS Trust,28/03/24,WIP Project Not in BS - Plant & Machinery,Work in Progress,PLINTH MEDICAL LTD,SI24001333,159939.00
Department of Health,Leicestershire Partnership NHS Trust,28/03/24,External Consultancy Fees,Leicester City CCG IT Recharge,NOTTS HLTHC NHS FT,1000057953,25000.00
Department of Health,Leicestershire Partnership NHS Trust,28/03/24,External Consultancy Fees,Leicester City CCG IT Recharge,NOTTS HLTHC NHS FT,1000057954,50000.00
Department of Health,Leicestershire Partnership NHS Trust,28/03/24,Computer Hardware,HIS External Recharge,PHOENIX SOFTWARE LTD,OP/I003378,109298.00
